Workbook

Sheet Cover Page
D1: Add company logo
N2: Version 20.5
B8: Add photo
N13: Notes:
N14: This template may require adjustments by individual operators to meet specific reporting requirements as defined in the site Permit(s)
B29: Annual Performance Report 2020
B31: Permit EPR/NP3738SY
B33: South East London Combined Heat and Power (SELCHP)
B37: Veolia SELCHP Ltd
B39: Year: | C39: 2020
B41: Address: | C41: The Kennels Site, Landmann Way, Lewisham
B43: Tel: | C43: 02035676100
B45: Email: | C45: enquiries@selchp.com
B47: Prepared by: | C47: Lewis Smith | F47: Position: | G47: Environmental (ERF) Engineer
B49: Approved by: | C49: Thomas Folliard | F49: Position: | G49: General Manager
B51: Version: | C51: 1
B53: Issue Date: | C53: 2021-01-25

Sheet Contents
A1: =+'Cover Page'!$B$29 -> Annual Performance Report 2020 | E1: =+'Cover Page'!$B$33 -> South East London Combined Heat and Power (SELCHP)
A3: Contents | K3: Notes:
A4: Section | B4: Subject | H4: Page | K4: Section references and Page nos. to be inserted
B5: Facility Information | K5: Sections and Subjects may require adjustment by individual operators to meet specific reporting requirements as defined in the sites Permit(s)
B6: Operational Summary
B7: Operational Data
B8: Performance Form 1
B9: Energy Form 1
B10: Permit Compliance
B11: Improvements
B12: Public Liaison
B13: Residue Quality - Optional
B14: Emissions to Water
B15: Emissions to Air (periodically monitored)
B16: Emissions to Air (continuously monitored)
B17: Hydrogen Chloride emissions
B18: Sulphur Dioxide emsissions
B19: Oxides of Nitrogen emissions
B20: Total Organic Carbon emissions
B21: Particulate Matter emissions
B22: Carbon Monoxide emissions
B23: Ammonia emissions
A26: Version Control
A27: Section | B27: Information | H27: Date
A34: Distribution
A35: Copy | B35: Name, Role | H35: No.
A44: This report is required under the Industrial Emissions Directive’s Article 55(2) requirements on reporting and public information on waste incineration plants and co-incineration plants, which require the operator to produce an annual report on the functioning and monitoring of the plant and make it available to the public.

Sheet Facility Info
A1: =+'Cover Page'!$B$29 -> Annual Performance Report 2020 | E1: =+'Cover Page'!$B$33 -> South East London Combined Heat and Power (SELCHP)
A3: Plant Description and Design | K3: Notes:
A5: In 1986, faced with the increasing scarcity and environmental problems of landfill, the London Boroughs of Lewisham, Southwark and Greenwich came together to search for a realistic alternative. In 1988, they formed a Consortium - South East London Combined Heat and Power - from which SELCHP, Energy Recovery Facility (ERF), now takes its name. The facility recovers heat energy from the combustion of non-hazardous waste to raise steam, to generate electricity from a steam turbine which is then exported to the National Grid. Residual steam from the process is used to heat a district heating network, which supplies heat for domestic heating and hot water to local residents. Strict environmental controls and proven operating experience ensure that SELCHP remains consistently compliant with environmental permitting regulations. Technical details of the plant: Two boilers supply steam to one common turbine Maximum Permitted Refuse throughput – 464,000 tonnes per annum (29 tonnes per hour per boiler) Number of tipping bays – 11 Steam output – 38 tonnes of steam per hour at 395°C and 46 bar Flue gas treatment – Selective Non-Catalytic Reduction (SNCR) DeNOx, activated carbon injection, semi-wet lime scrubber and high performance bag filters system, discharging into a 100 metre high chimney Electrical Generation Capacity – 35MWe and a District Heating potential capacity of 40MWth | K5: Include summary of plant design, design capacity, no. of combustion lines, electrical and heat capacity and any other general information that describes the facility, its location and purpose
A20: Summary of Operational Processes and Procedures
A22: The main purpose of the activity at SELCHP is to burn non-hazardous municipal waste and to recover energy in the form of steam for both; the export of heat via a district heating network and as electricity for export to the national grid. SELCHP is a consortium of Local Authorities and private enterprise that operates a 464,000 tonne per year, mass burn, municipal waste incinerator in Deptford in the London Borough of Lewisham. Waste is delivered both; directly to site by refuse collection vehicles and various other waste vehicles. Waste delivered to site is discharged into the waste storage bunker. Oversized and unsuitable wastes are rejected and removed. The waste is then charged into one of two furnaces by dedicated grab cranes. Hydraulic ram feeders control the charging rate of the waste to the furnace grate. Waste is burnt on a reverse acting stoker grate with combustion air supplied in a controlled manner to ensure efficient combustion. The production on Oxides of Nitrogen (NOx) by combustion is mitigated by the injection of ammonia solution into the furnace by a process of Selective Non-Catalytic Reduction (SNCR). Bottom ash from the grate is quenched in a water bath to prevent the release of dust and provide a gas seal, at the ash discharger outlet. Ferrous metal is recovered from the ash by a drum magnet. Residual ash is recovered and sent to a recycling facility in Greenwich, London. The hot gases from the combustion process are passed through a boiler to raise steam, which is then forwarded to a steam turbine to generate up to 32 MW of electricity for export to the national grid. Excess steam, of too low an enthalpy to generate electricity, is taken off the turbine, allowing for the export of heat via the District Heating network to local residents. This heat would otherwise be lost to atmosphere,as waste heat, via the Air Cooled Condenser (ACC). Exhaust gasses from the boiler are sent to the flue gas treatment plant. Firstly activated carbon is injected to adsorb mercury, heavy metals, dioxins and dioxin like compounds. Secondly, a semi-dry lime scrubbing plant removes acid gasses, predominantly hydrogen chloride (HCl) and sulphur dioxide (SO2). Lastly, the flue gases pass through a series of bad filters to control particulate emissions. The cleaned gasses are discharged from a 100 meter, twin flue (one for each furnace) chimney. SELCHP operates an Environmental Management system accredited to ISO 14001. There are no European sites within 10 km. Air dispersion modeling has established that the site has minimal impact on sites of special scientific interest (SSSI) within that radius. All emissions from the plant have been modelled, demonstrating that it is unlikely to have a significant impact on local air quality, due to it urban setting. There are no releases to controlled waters as part of the process. Process effluents are reused within the process. Residual effluents are released to sewer as trade effluent. A Household, commercial and industrial waste transfer station may also be operated within the permit boundary, under conditions set out in ‘Standard Rules Permit SR2008No1’ when required. | K22: Include summary of key processes and procedures such as (but not limited to); waste reception, control rooms, grate, bed and boiler, energy & heat generation, cooling systems, residue management, emission controls, health and safety systems, maintenance

Sheet Operational Data
A1: =+'Cover Page'!$B$29 -> Annual Performance Report 2020 | E1: =+'Cover Page'!$B$33 -> South East London Combined Heat and Power (SELCHP)
A3: Operational Data | K3: Notes:
A4: Plant Size | B4: 464000 | D4: tonnes pa | E4: 30 | F4: MWth | G4: 35 | H4: MWe | K4: * - RDF to include SRF
A5: No. of combustion lines | B5: 2 | D5: No. of Turbines: | F5: 1 | K5: ** - CHP plants only
K6: 2020 updates include; heat in MWh, water in Litres, NCV in MJ/kg
A7: Waste types received | B7: Unit | C7: Q1 | D7: Q2 | E7: Q3 | F7: Q4 | G7: Year Total | H7: %
A8: Household / Local Authority | B8: tonnes | C8: 93669.89 | D8: 93692.46 | E8: 63367 | F8: 97396 | G8: =SUM(C8:F8) -> 348125.35 | H8: =IF(G8>0,G8/$G$18,"-") -> 0.9428461268 | K8: Availability Definition: 'the availability of a line is to be calculated by the number of hours the line reported Continuously Monitored emission levels to the Regulator through the calendar year divided by the total number of hours in that year. The overall plant availability is calculated as the Mean of all lines in the plant. For clarity this includes periods of Other Than Normal Operating Conditions (OTNOC) and abnormal operation.' Rationale: The primary function of an Energy from Waste facility is the disposal of waste. It follows therefore that the availability of a plant is determined by the period of time a facility spends undertaking this activity.
A9: Commercial & Industrial | C9: 510.32 | D9: 7255.98 | E9: 949 | F9: 2132 | G9: =SUM(C9:F9) -> 10847.3 | H9: 0.02937831098
A10: Hazardous | C10: 0 | D10: 0 | E10: 0 | F10: 0 | G10: 0 | H10: -
A11: Clinical | C11: 26.3 | D11: 23.36 | E11: 0 | F11: 28.34 | G11: 78 | H11: 0.0002112514871
A12: Waste wood (biomass) | C12: 0 | D12: 0 | E12: 0 | F12: 0 | G12: 0 | H12: -
A13: Refuse Derived Fuel * - H'hold/LA | C13: 454 | D13: 6819.08 | E13: 843.62 | F13: 2060.82 | G13: =SUM(C13:F13) -> 10177.52 | H13: 0.02756431071
A14: Refuse Derived Fuel * - C&I | C14: 0 | D14: 0 | E14: 0 | F14: 0 | G14: 0 | H14: -
A15: Other [Please specify] | G15: 0 | H15: -
A16: Other [Please specify]
A17: Other [Please specify]
A18: Total waste received | C18: =SUM(C8:C17) -> 94660.51 | D18: =SUM(D8:D17) -> 107790.88 | E18: =SUM(E8:E17) -> 65159.62 | F18: =SUM(F8:F17) -> 101617.16 | G18: =SUM(G8:G17) -> 369228.17 | H18: 1
A19: Rejected Waste | C19: 0 | D19: 0 | E19: 10.66 | F19: 0 | G19: =SUM(C19:F19) -> 10.66 | H19: =IF(G19>0,G19/$G$18,"-") -> 2.887103657e-05
A20: Unprocessed waste transferred out | C20: 0 | D20: 0 | E20: 0 | F20: 0 | G20: =SUM(C20:F20) -> 0 | H20: =IF(G20>0,G20/$G$18,"-") -> -
A21: Total waste combusted | C21: =C18-SUM(C19:C20) -> 94660.51 | D21: =D18-SUM(D19:D20) -> 107790.88 | E21: 65148.96 | F21: 101617.16 | G21: =SUM(C21:F21) -> 369217.51 | H21: =IF(G21>0,G21/$G$18,"-") -> 0.999971129
A23: Energy Usage / Export | B23: Unit | C23: Q1 | D23: Q2 | E23: Q3 | F23: Q4 | G23: Year Total | H23: KWh/te
A24: Power Generated | B24: MWh | C24: 62848.75 | D24: 70326.4 | E24: 37096.13 | F24: 70503 | G24: =SUM(C24:F24) -> 240774.28 | H24: =IF(G24>0,G24*1000/$G$21,"-") -> 652.1204262
A25: Power Exported | C25: 55643.8 | D25: 60285.45 | E25: 32585.86 | F25: 62876.03 | G25: =SUM(C25:F25) -> 211391.14 | H25: =IF(G25>0,G25*1000/$G$21,"-") -> 572.5382309
A26: Power Used on site | C26: 7204.95 | D26: 10040.95 | E26: 4510.27 | F26: 7626.97 | G26: =SUM(C26:F26) -> 29383.14 | H26: =IF(G26>0,G26*1000/$G$21,"-") -> 79.58219533
A27: Power Imported | C27: 116.6 | D27: 0 | E27: 1384.59 | F27: 0 | G27: 1501.19 | H27: =IF(G27>0,G27*1000/$G$21,"-") -> 4.065868924
A28: Parasitic Load | B28: % | C28: =IF(C24>0,1-C25/(C24+C27),"-") -> 0.1162790328 | D28: =IF(D24>0,1-D25/(D24+D27),"-") -> 0.1427763969 | E28: =IF(E24>0,1-E25/(E24+E27),"-") -> 0.1531899611 | F28: =IF(F24>0,1-F25/(F24+F27),"-") -> 0.1081793683 | G28: =IF(G24>0,1-G25/(G24+G27),"-") -> 0.1274760916
A29: Thermal Energy Produced ** | B29: MWh | C29: 3130349 | D29: 333444 | E29: 224964 | F29: 342806 | G29: =SUM(C29:F29) -> 4031563 | H29: =IF(G29>0,G29*1000/$G$21,"-") -> 10919.20857
A30: Thermal Energy Exported ** | C30: 13686.13 | D30: 9055.77 | E30: 3513.77 | F30: 13931.14 | G30: 40186.81 | H30: =IF(G30>0,G30*1000/$G$21,"-") -> 108.8431857
A31: R1 value | C31: 0.7 | G31: Design / Operational / n/a
A33: Waste Disposal & Recovery | B33: Unit | C33: Q1 | D33: Q2 | E33: Q3 | F33: Q4 | G33: Year Total | H33: % inputs
A34: APC Residues - produced | B34: tonnes | C34: 2823.68 | D34: 3120.2 | E34: 1914.18 | F34: 3070.92 | G34: =SUM(C34:F34) -> 10928.98 | H34: =IF(G34>0,G34/$G$18,"-") -> 0.0295995292
A35: IBA - produced | C35: 19942.44 | D35: 23298.34 | E35: 14359.22 | F35: 23097.68 | G35: 80697.68 | H35: =IF(G35>0,G35/$G$18,"-") -> 0.2185577552
A36: Metals recycling | C36: 1075 | D36: 2367.3 | E36: 1818.5 | F36: 1344.44 | G36: =SUM(C36:F36) -> 6605.24 | H36: =IF(G36>0,G36/$G$18,"-") -> 0.0178893176
A37: Other | C37: 0 | D37: 0 | E37: 0 | F37: 0 | G37: =SUM(C37:F37) -> 0 | H37: =IF(G37>0,G37/$G$18,"-") -> -
A39: Raw Material Usage | B39: Unit | C39: Q1 | D39: Q2 | E39: Q3 | F39: Q4 | G39: Year Total | H39: kg or Ltr /te
A40: Mains Water | B40: ltrs | C40: 31682 | D40: 64708.05 | E40: 54447.95 | F40: 43108.7 | G40: =SUM(C40:F40) -> 193946.7 | H40: =IF(G40>0,G40/$G$18,"-") -> 0.5252760102
A41: Other Water | B41: ltrs | C41: 0 | D41: 0 | E41: 0 | F41: 0 | G41: 0 | H41: =IF(G41>0,G41/$G$18,"-") -> -
A42: Ammonia | B42: kgs | C42: 381020 | D42: 372738 | E42: 220884 | F42: 323579 | G42: 1298221 | H42: =IF(G42>0,G42/$G$18,"-") -> 3.51603996
A43: Urea | B43: 0 | C43: 0 | D43: 0 | E43: 0 | F43: 0 | G43: =SUM(C43:F43) -> 0 | H43: =IF(G43>0,G43/$G$18,"-") -> -
A44: Activated Carbon | B44: kgs | C44: 43300 | D44: 26300 | E44: 15000 | F44: 22000 | G44: 106600 | H44: =IF(G44>0,G44/$G$18,"-") -> 0.2887103657
A45: Lime / hydrated lime | B45: kgs | C45: 818840 | D45: 1174030 | E45: 601100 | F45: 967634 | G45: 3561604 | H45: 9.646078738
A46: Fuel oil | B46: ltrs | C46: 155415 | D46: 41606 | E46: 326790 | F46: 41807 | G46: 565618 | H46: 1.531892867
A47: Gas | B47: cf | C47: 0 | D47: 0 | E47: 0 | F47: 0 | G47: 0
A48: Other | C48: 0 | D48: 0 | E48: 0 | F48: 0 | G48: 0
A50: Summary | B50: Line/Unit | C50: Q1 | D50: Q2 | E50: Q3 | F50: Q4 | G50: Year Total | J50: Hrs in year
A51: Availability of waste combustion by line, hrs | B51: 1 | C51: 1975.97 | D51: 2163.95 | E51: 1462.77 | F51: 2177.7 | G51: =SUM(C51:F51) -> 7780.39 | H51: 0.8857 | J51: 8784
B52: 2 | C52: 1991.03 | D52: 2107.02 | E52: 1478.47 | F52: 2207.05 | G52: 7783.57 | H52: 0.8861
G53: 0 | H53: x %
G54: 0 | H54: x %
G55: =SUM(C55:F55) -> 0 | H55: x %
A56: Overall Availability, mean avg. of all lines, hrs | G56: =AVERAGE(G51:G52) -> 7781.98 | H56: 0.8859
A57: Hours of turbine operations, hrs | B57: 1 | C57: 2059.52 | D57: 2184 | E57: 1312.12 | F57: 2208 | G57: 7763.64 | H57: 0.8838
A58: Hours of turbine operations, hrs | G58: 0 | H58: x %
A59: Hours of heat / steam export | G59: 0 | H59: =IF(B59>0,G58/J51,"n/a") -> n/a
A60: Net Calorific Value of waste | B60: MJ/kg | C60: 9.418 | D60: 9.40033 | E60: 9.286 | F60: 9.459 | G60: =AVERAGE(C60:F60) -> 9.3908325 | H60: -
A61: Abnormal Events | B61: qty. | D61: 2 | G61: 2 | H61: =IF(G61>0,"yes","no") -> yes
A62: Abnormal operation | B62: hours | D62: 4.5 | G62: 4.5 | H62: =+(G62)/J51 -> 0.000512295082
A63: Permit Breaches | B63: qty. | E63: 2 | G63: 2 | H63: =IF(G63>0,"yes","no") -> yes

Sheet Operational Summary
A1: =+'Cover Page'!$B$29 -> Annual Performance Report 2020 | E1: =+'Cover Page'!$B$33 -> South East London Combined Heat and Power (SELCHP)
A3: Summary of Plant Operations and Maintenance during the reporting year | K3: Notes:
A5: Overall plant availability for 2020 was 88.9%. Quarter one was troubled by a tranformer fault causing both boilers to trip, the shock of which lead to subsequnt breakdowns and repairs. Quarter 2 was characterised by a signinficant boiler tube leak on line two and the coronavirus pandemic pushing the planned outage back to August/September. Delay of the planned outage contributed to boiler breakdowns, prior to planned works comencing on the 7th and 12th of August for line 1 and line 2 respectively. 2020's annual outage saw the most significanty overhaul to SELCHP's steam turbine, issues while recomissioning the turbine resulted in the outage periode being prolonged. Quater four was largely without incident. Outage highlights: full turbine rotor replacement, boiler one ash discharger replacment and replacement of middle wall top headers on both boilers. | K5: Include summary of key operational and/or maintenance activity undertaken in the year, such as any major component upgrades and/or replacements
A29: Summary of Residue Handling for the reporting year
A31: All incinerator bottom ash is loaded to tipper trucks by excavators and sent for reprocessing at a dedicated and permitted facility in Charlton, London (Recycling code R4). Where the majority of ferrous and non-ferrous metals are extracted for sale to metals traders. Residual aggregates are sold for use in the a range of permissible construction projects. Air pollution control residue, transported as a power and loaded into road tankers, is predominantly sent to Veolia Empire Works, Walsall (99%) for treatment with waste industrial sulphuric/phosphoric acid and disposal to landfill (Disposal code D9). The remainder was sent to a deep storage facility (disposal code D12). Ferrous metal separated from the IBA is sold to and collected by reputable scrap metal traders. | K31: Include in here a summary of residue handling regimes and destinations

Sheet Perf. Form 1
A1: =+'Cover Page'!C39 -> 2020 | B1: Annual Reporting Performance Form 1
A3: =+'Cover Page'!B31 -> Permit EPR/NP3738SY | F3: Operator: | G3: ='Cover Page'!B37 -> Veolia SELCHP Ltd
A4: Facility: | B4: =+'Cover Page'!B33:I33 -> South East London Combined Heat and Power (SELCHP) | F4: Form: | G4: Performance 1
A6: Reporting Period from: | D6: 2020-01-01 | F6: to: | G6: 2020-12-31
A8: =+A1 -> 2020 | B8: Annual Reporting of Waste Disposal and Recovery
A9: Waste Description | C9: Disposal Route(s) | E9: Disposal Tonnes | G9: Recovery Tonnes | I9: % / tonne of waste incinerated
A10: 1) Hazardous Wastes
A11: APC Residues | C11: 2 | E11: 10928.98 | G11: 0 | I11: =IF((E11+G11)>0,(E11+G11)/'Operational Data'!$G$21, "-") -> 0.0296003838
A12: IBA | C12: 0 | E12: 0 | G12: 0 | I12: =IF((E12+G12)>0,(E12+G12)/'Operational Data'!$G$21, "-") -> -
I13: =IF((E13+G13)>0,(E13+G13)/'Operational Data'!$G$21, "-") -> -
I14: =IF((E14+G14)>0,(E14+G14)/'Operational Data'!$G$21, "-") -> -
A15: Total Hazardous Waste | E15: =SUM(E11:F14) -> 10928.98 | G15: =SUM(G11:H14) -> 0 | I15: =IF((E15+G15)>0,(E15+G15)/'Operational Data'!$G$21, "-") -> 0.0296003838
A17: 2) Non-Hazardous Wastes
A18: IBA | C18: 1 | E18: 0 | G18: 80697.68 | I18: =IF((E18+G18)>0,(E18+G18)/'Operational Data'!$G$21, "-") -> 0.2185640654
A19: Ferrous Metal | C19: 1 | E19: 0 | G19: 6542.06 | I19: =IF((E19+G19)>0,(E19+G19)/'Operational Data'!$G$21, "-") -> 0.01771871545
A20: Process Water | I20: =IF((E20+G20)>0,(E20+G20)/'Operational Data'!$G$21, "-") -> -
I21: =IF((E21+G21)>0,(E21+G21)/'Operational Data'!$G$21, "-") -> -
I22: =IF((E22+G22)>0,(E22+G22)/'Operational Data'!$G$21, "-") -> -
A23: Total Non-Hazardous Waste | E23: =SUM(E18:F22) -> 0 | G23: =SUM(G18:H22) -> 87239.74 | I23: =IF((E23+G23)>0,(E23+G23)/'Operational Data'!$G$21, "-") -> 0.2362827808
A24: TOTAL WASTE | E24: =+E23+E15 -> 10928.98 | G24: =+G23+G15 -> 87239.74 | I24: =IF((E24+G24)>0,(E24+G24)/'Operational Data'!$G$21, "-") -> 0.2658831646
A26: Operator’s comments :
A31: =+A1 -> 2020 | B31: Annual Reporting of Water and Other Raw Material Usage
A32: Raw Material | E32: Usage | G32: Unit | H32: Specific Usage | J32: Unit
A33: Mains Water | E33: =+'Operational Data'!G40 -> 193946.7 | G33: m3 | H33: =IF(E33>0,E33/'Operational Data'!$G$21,"-") -> 0.5252911759 | J33: m3/te
A34: Total Water | E34: =+'Operational Data'!G41+'Operational Data'!G40 -> 193946.7 | G34: m3 | H34: =IF(E34>0,E34/'Operational Data'!$G$21,"-") -> 0.5252911759 | J34: m3/te
A35: Urea / Ammonia | E35: =+'Operational Data'!G42 -> 1298221 | G35: kg | H35: =IF(E35>0,E35/'Operational Data'!$G$21,"-") -> 3.516141474 | J35: kg/te
A36: Activated Carbon | E36: =+'Operational Data'!G44 -> 106600 | G36: kg | H36: =IF(E36>0,E36/'Operational Data'!$G$21,"-") -> 0.2887187013 | J36: kg/te
A37: Lime / hydrated lime / Sodium Bicarb. | E37: =+'Operational Data'!G45 -> 3561604 | G37: kg | H37: =IF(E37>0,E37/'Operational Data'!$G$21,"-") -> 9.646357238 | J37: kg/te
A39: Operator’s comments :
A43: =+A31 -> 2020 | B43: Annual Reporting of other performance indicators
A44: Parameter | C44: Results by Line
C45: A1 | D45: A2 | E45: A3 | F45: A4 | G45: A5 | I45: Turbine 1 | J45: Turbine 2
A46: Operating hours for the year, hours | C46: ='Operational Data'!G51 -> 7780.39 | D46: ='Operational Data'!G52 -> 7783.57 | I46: ='Operational Data'!G57 -> 7763.64
A47: Number of periods of abnormal operation, qty. | C47: 1 | D47: 0 | I47: 0
A48: Cumulative hours of abnormal operation for this year, hours | C48: 4 | D48: 0 | I48: 0
A50: Operator’s comments :
A54: Signed: | G54: Date:

Sheet Energy Form 1
A1: =+'Cover Page'!C39 -> 2020 | B1: Annual Reporting of Energy Usage/Export
A3: =+'Cover Page'!B31 -> Permit EPR/NP3738SY | F3: Operator: | G3: ='Cover Page'!B37 -> Veolia SELCHP Ltd
A5: Facility: | B5: =+'Cover Page'!B33:I33 -> South East London Combined Heat and Power (SELCHP) | F5: Form: | G5: Energy 1
A7: Reporting Period from: | D7: =+'Perf. Form 1'!D6:E6 -> 2020-01-01 | F7: to: | G7: =+'Perf. Form 1'!G6:H6 -> 2020-12-31
A9: Energy Source | D9: Energy Usage | F9: Unit | G9: Specific Usage (KWh/tonne incinerated
A10: Electricity Produced | D10: =+'Operational Data'!G24 -> 240774.28 | F10: MWh | G10: =+'Operational Data'!H24 -> 652.1204262
A11: Electricity Imported | D11: =+'Operational Data'!G27 -> 1501.19 | F11: MWh | G11: =+'Operational Data'!H27 -> 4.065868924
A12: Electricity Exported | D12: =+'Operational Data'!G25 -> 211391.14 | F12: MWh | G12: =+'Operational Data'!H25 -> 572.5382309
A13: Gas Oil | F13: tonnes
A14: Steam/hot water exported | D14: =+'Operational Data'!G30 -> 40186.81 | F14: GWh | G14: =+'Operational Data'!H30 -> 108.8431857
A18: Operator’s comments :
A19: There are early indications that the turbine overhaul improved overall electrical efficiency of the plant in quarter four.
A29: Signed: | G29: Date:

Sheet Permit Compliance
A1: =+'Cover Page'!$B$29 -> Annual Performance Report 2020 | E1: =+'Cover Page'!$B$33 -> South East London Combined Heat and Power (SELCHP)
A3: Summary of Permit Compliance
A5: Compliance with permit limits for continuously monitored pollutants
A7: The plant met its emission limits as shown in the table below:
A8: Substance | C8: Percentage time compliant during operation | L8: Notes:
C9: Half-hourly limit | F9: Daily limit | L9: Report to 2 decimal places, i.e. xx.xx% Please provide a brief summary of each notification or non-compliance in the table (rather than just referring to notifications that were sent to the Regulator).
A10: Particulates | C10: 1 | F10: 1
A11: Oxides of nitrogen | C11: 1 | F11: 1
A12: Sulphur dioxide | C12: 1 | F12: 1
A13: Carbon monoxide | C13: 100% 95% of 10-min averages | F13: 1
A14: Total organic carbon | C14: 0.99818 | F14: 1
A15: Hydrogen chloride | C15: 1 | F15: 1
A16: Hydrogen fluoride | C16: 1 | F16: 1
A19: Summary of any notifications or non-compliances under the permit
A20: Date | B20: Summary of notification or non-compliance [including Line/Reference] | E20: Reason | H20: Measures taken to prevent reoccurrence
A21: 2020-05-21 | B21: A1 DeNOx system in abnormal operation | E21: Declare ab-ops time | H21: n/a
A22: 2020-08-06 | B22: A1 emission of smoke form feed chute | E22: Blocked economiser pass | H22: Avoid outage delay where possible
A23: 2020-08-30 | B23: A1 VOC CEMS bad data | E23: CEMS fault | H23: Re-training delivered
A27: Summary of any complaints received and actions to taken to resolve them.
A28: Date | B28: Summary of complaint [including Line/Reference] | E28: Reason * | H28: Measures taken to prevent reoccurrence
A29: 2021-02-28 | B29: Odour (*operator) | E29: Both boilers tripped | H29: Planned Maintenance
A30: 2021-03-01 | B30: Noise (*operator) | E30: Vacuum Hogger in service | H30: Avoid turbine trips
E34: * including whether substantiated by the operator or the EA

Sheet Improvements
A1: =+'Cover Page'!$B$29 -> Annual Performance Report 2020 | E1: =+'Cover Page'!$B$33 -> South East London Combined Heat and Power (SELCHP)
A3: Summary of Plant Improvements
A5: Summary of any efficiency improvements that have been completed within the year.
A6: There are early indications that the turbine overhaul improved overall electrical efficiency of the plant in quarter four. Given the heterogeneous nature of the waste feedstock and impact of ambient temperature on electrical generation, the improvement in electrical effeicency has yet to be quantified.
A16: Summary of any permit improvement conditions that have been completed within the year and the resulting environmental benefits.
A17: n/a
A27: Summary of any changes to the plant or operating techniques which required a variation to the permit and a summary of the resulting environmental impact.
A28: n/a
A38: Summary of any other improvements made to the plant or planned to be made and a summary of the resulting environmental benefits.
A39: District Heating Expansion: Plans to connect with prospective customers have progressed in 2020. Lewisham DH Network towards Deptford: HNIP funding has been granted in order to accommodate an additional (~7500 homes), planning permission has been granted for the first phase, construction will commence in quarter four of 2021 with commissioning expected in 2023. Southwark DH Network Towards North Peckham: Discussions regarding an extension of the existing network in the borough of Southwark is ongoing (~15,000 homes). The scheme has reached the first stage-gate - Veolia internal approval and, if accepted by London Borough of Southwark, a HNIP application should be submitted early 2021. Veolia proposal includes a 25 year Heat Supply Agreement from SELCHP to deliver heat to 11 public estates (~3200 homes) and schools by retrofitting or decommissioning council gas energy centres. The scheme will deliver a district heating exclusive zone in the proximity of Old Kent Road regeneration area and aims to have connected approximately ~10000 new homes over 15 year period. Bermondsey Development (~1100 homes): A project development agreement has been signed to conduct viability and feasibility studies. The agreement is the first milestone in securing a future SELCHP connection. Veolia ES SELCHP team has worked in collaboration with BRE and BEIS to establish SAP instructions when assessing heat networks from waste combustion. This is a milestone when developers under S106 are defining their energy strategy - Information can be found on BRE website - note 3 (https://www.bregroup.com/sap/bre-technical-notes/)."

Sheet Public Liasion
A1: =+'Cover Page'!$B$29 -> Annual Performance Report 2020 | E1: =+'Cover Page'!$B$33 -> South East London Combined Heat and Power (SELCHP)
A3: Details of Public & Stakeholder Liaison
A5: Summary of events held during the reporting year.
A6: Date | C6: Description
A7: n/a | C7: Due to the Covid 19 pandemic it has not been possible to hold our annaul open day. A few site tours for various universities were held in January and February.
A16: List of events planned for next year
A17: Date | C17: Description
A18: 2021-09-01 | C18: Presently, it is not possible to confirm whether or not, SELCHPs annual open day will be held in 2021, due to the Corona virus pandemic.
A29: If you wish to be involved in the public liaison programme, please contact enquiries@selchp.com

Sheet Residue Quality
A1: =+'Cover Page'!$B$29 -> Annual Performance Report 2020 | E1: =+'Cover Page'!$B$33 -> South East London Combined Heat and Power (SELCHP)
A3: Residue Quality Monitoring Requirements
A5: Summary of monitoring undertaken and compliance
A6: IBA - Two samples per month are analysed according to the ESA protocol one sample per quarter is analysed as per permit requirements.
A8: APC - One sample per quarter is analysed as per permit requirements
A13: Commentary on any specific events
A14: Date & Event | C14: Description
A27: Residue Quality Monitoring Results
A28: Parameter (unit) | C28: Limit | D28: Normal Operation
D29: Bottom ash | F29: APC Residues
A30: Loss on Ignition (average %) | C30: <5% | D30: -
A31: Total Organic Carbon (average %) | C31: <3% | D31: 1.96
A32: No. of Assessments Undertaken | C32: --- | D32: 24 | F32: 4
A33: No. of Hazardous Results | C33: --- | D33: 0
A35: Comments :

Sheet Water
A1: =+'Cover Page'!$B$29 -> Annual Performance Report 2020 | E1: =+'Cover Page'!$B$33 -> South East London Combined Heat and Power (SELCHP)
A3: Emissions to Water
A5: Summary of monitoring undertaken and compliance
A6: Water is only discharged off site to commercial sewer, in accordance with Thames Water's discharge consent requirements. There are no monitoring parameters set our in the permit. Although, monthly aggregate samples are sent for laboratory analysis against the discharge consent parameters.
A13: Commentary on any specific events
A14: Date & Event | C14: Description
A22: Emissions to Water / Sewer
A23: Parameter | D23: Monitoring Frequency | G23: Limit | H23: Target | I23: Max. | J23: Average

Sheet Air (periodic)
A1: =+'Cover Page'!$B$29 -> Annual Performance Report 2020 | E1: =+'Cover Page'!$B$33 -> South East London Combined Heat and Power (SELCHP)
A3: Emissions to Air (periodically monitored)
A5: Summary of monitoring undertaken, standards used and compliance | M5: Notes:
A6: Bi-Annual monitoring. Standards used as applicable; EN 1948, EN 16911-1 (MID), EN 14792, EN 12619:2013, EN 15058, EN 14790, EN ISO 21258, EN 14789, EN 14791, MID 14385, EN 1911, ISO 11338, ISO 15713, EN 14385, EN 13284-1 | M6: Template may require adjustment for any bespoke monitoring requirements of permit.
A9: Results of emissions to air that are periodically monitored
A10: Substance | C10: Ref. Period | D10: Emission Limit Value | F10: Average | M10: User to add additional tables as necessary, depending on whether quarterly or bi-annual reporting is required for the compliance year
F11: A1 | G11: A2 | H11: A3 | I11: A4 | J11: A5
A12: Hydrogen fluoride | C12: 1 hr | D12: 2 mg/m3 | F12: 0.045 | G12: 0.0435
A13: Cd and Th and their compounds | C13: 6-8hrs | D13: 0.05 mg/m3 | F13: 0.00095 | G13: 0.00115
A14: Hg and its compounds | C14: 6-8hrs | D14: 0.05 mg/m3 | F14: 0.000286 | G14: 0.000835
A15: Sb, As, Pb, Cr, Co, Cu, Mn, Ni, V and their compounds | C15: 6-8hrs | D15: 0.5 mg/m3 | F15: 0.0285 | G15: 0.1055
A16: Dioxins & Furans (I-TEQ) | C16: 6-8hrs | D16: 0.1 ng/m3 | F16: 0.00665 | G16: 0.00355
A17: PCBs (WHO-TEQ Humans / Mammals) | C17: 6-8hrs | D17: None set ng/m3 | F17: 0.001005 | G17: 0.000745
A18: PCBs (WHO-TEQ Fish) | C18: 6-8hrs | D18: None set ng/m3 | F18: 6.5e-05 | G18: 0.0002605
A19: PCBs (WHO-TEQ Birds) | C19: 6-8hrs | D19: None set ng/m3 | F19: 0.0019 | G19: 0.00154
A20: Dioxins & Furans (WHO-TEQ Humans / Mammals) | C20: 6-8hrs | D20: None set ng/m3 | F20: 0.0057 | G20: 0.00645
A21: Dioxins & Furans (WHO-TEQ Fish) | C21: 6-8hrs | D21: None set ng/m3 | F21: 0.0058 | G21: 0.00675
A22: Dioxins & Furans (WHO-TEQ Birds) | C22: 6-8hrs | D22: None set ng/m3 | F22: 0.00835 | G22: 0.01055
A23: Anthanthrene | C23: 6-8hrs | D23: None set µg/m3 | F23: 0.00401 | G23: 0.000895
A24: Benzo(a)anthracene | C24: 6-8hrs | D24: None set µg/m3 | F24: 0.000825 | G24: 0.00226
A25: Benzo(a)pyrene | C25: 6-8hrs | D25: None set µg/m3 | F25: 0.000825 | G25: 0.000895
A26: Benzo(b)fluoranthene | C26: 6-8hrs | D26: None set µg/m3 | F26: 0.000825 | G26: 0.000895
A27: Benzo(b)naptho(2,1-d) thiophene | C27: 6-8hrs | D27: None set µg/m3 | F27: 0.000825 | G27: 0.000895
A28: Benzo(c)phenanthrene | C28: 6-8hrs | D28: None set µg/m3 | F28: 0.00502 | G28: 0.000895
A29: Benzo(ghi)perylene | C29: 6-8hrs | D29: None set µg/m3 | F29: 0.000825 | G29: 0.00152
A30: Benzo(k)fluoranthene | C30: 6-8hrs | D30: None set µg/m3 | F30: 0.000825 | G30: 0.000895
A31: Cholanthrene | C31: 6-8hrs | D31: None set µg/m3 | F31: 0.000825 | G31: 0.000895
A32: Chrysene | C32: 6-8hrs | D32: None set µg/m3 | F32: 0.003 | G32: 0.001095
A33: Cyclopenta(cd)pyrene | C33: 6-8hrs | D33: None set µg/m3 | F33: 0.000825 | G33: 0.000895
A34: Dibenzo(ai)pyrene | C34: 6-8hrs | D34: None set µg/m3 | F34: 0.000825 | G34: 0.002135
A35: Dibenzo(ah)anthracene | C35: 6-8hrs | D35: None set µg/m3 | F35: 0.000825 | G35: 0.00641
A36: Fluoranthene | C36: 6-8hrs | D36: None set µg/m3 | F36: 0.0067 | G36: 0.002345
A37: Indeno(123-cd) pyrene | C37: 6-8hrs | D37: None set µg/m3 | F37: 0.000825 | G37: 0.000895
A38: Naphthalene | C38: 6-8hrs | D38: None set µg/m3 | F38: 1.479655 | G38: 1.499725
A39: Comments :

Sheet Air (CEMS)
A1: =+'Cover Page'!$B$29 -> Annual Performance Report 2020 | F1: =+'Cover Page'!$B$33 -> South East London Combined Heat and Power (SELCHP)
A3: Emissions to Air (continuously monitored)
N4: Notes:
A5: Summary of monitoring undertaken, standards used and compliance | N5: Template may require adjustment for any bespoke monitoring requirements of permit
A6: Three MCERT cretified CEMS are installed at the base of the Chimeney. Two duty, one for each combustion line and a third standby which may be selected to either line. Extractive sampling heated lines smple the flues gases. Instuments; MIR-FT, FID, in flue electrified probe and O2 probe. | N6: Report to 2 decimal places, i.e. xx.xx%
A9: Results of emissions to air that are continuously monitored (maximum and average values for each line)
A10: Substance | B10: Reference Period | C10: Emission Limit Value | D10: A1 | F10: A2 | H10: A3 | J10: A4
D11: Max. | E11: Avg. | F11: Max. | G11: Avg. | H11: Max. | I11: Avg. | J11: Max. | K11: Avg.
A12: Oxides of nitrogen | B12: Daily mean | C12: 200 mg/m3 | D12: =NOx!$O$19 -> 195.98 | E12: =NOx!$N$19 -> 173.4591667 | F12: =NOx!$O$34 -> 197.53 | G12: =NOx!$N$34 -> 174.1591667
B13: ½ hourly mean | C13: 400 mg/m3 | D13: =NOx!$M$19 -> 315.08 | E13: =NOx!$L$19 -> 173.0966667 | F13: =NOx!$M$34 -> 274.88 | G13: =NOx!$L$34 -> 173.9591667
A14: Particulates | B14: Daily mean | C14: 10 mg/m3 | D14: =Particulates!$O$19 -> 7.29 | E14: =Particulates!$N$19 -> 1.62 | F14: =Particulates!$O$34 -> 2 | G14: =Particulates!$N$34 -> 0.3325
B15: ½ hourly mean | C15: 30 mg/m3 | D15: =Particulates!$M$19 -> 26.65 | E15: =Particulates!$L$19 -> 1.644166667 | F15: =Particulates!$M$34 -> 14.53 | G15: =Particulates!$L$34 -> 0.335
A16: Total Organic Carbon | B16: Daily mean | C16: 10 mg/m3 | D16: =TOC!$O$19 -> 1.35 | E16: =TOC!$N$19 -> 0.16 | F16: =TOC!$O$34 -> 0.75 | G16: =TOC!$N$34 -> -0.001666666667
B17: ½ hourly mean | C17: 20 mg/m3 | D17: =TOC!$M$19 -> 8.48 | E17: =TOC!$L$19 -> 0.05166666667 | F17: =TOC!$M$34 -> 6.14 | G17: =TOC!$L$34 -> -0.0008333333333
A18: Hydrogen chloride | B18: Daily mean | C18: 10 mg/m3 | D18: =HCl!$O$19 -> 8.31 | E18: =HCl!$N$19 -> 6.1225 | F18: =HCl!$O$34 -> 8.23 | G18: =HCl!$N$34 -> 5.814166667
B19: ½ hourly mean | C19: 60 mg/m3 | D19: =HCl!$M$19 -> 52.79 | E19: =HCl!$L$19 -> 6.120833333 | F19: =HCl!$M$34 -> 40.2 | G19: =HCl!$L$34 -> 5.7825
A20: Sulphur dioxide | B20: Daily mean | C20: 50 mg/m3 | D20: ='SO2'!$O$19 -> 22.44 | E20: ='SO2'!$N$19 -> 10.46833333 | F20: ='SO2'!$O$34 -> 26.53 | G20: ='SO2'!$N$34 -> 12.305
B21: ½ hourly mean | C21: 200 mg/m3 | D21: ='SO2'!$M$19 -> 182.5 | E21: ='SO2'!$L$19 -> 10.53833333 | F21: ='SO2'!$M$34 -> 166.67 | G21: ='SO2'!$L$34 -> 12.22083333
A22: Carbon monoxide | B22: Daily mean | C22: 50 mg/m3 | D22: ='CO 95% 10 min'!$Q$19 -> 8.5 | E22: ='CO 95% 10 min'!$P$19 -> 2.215 | F22: ='CO 95% 10 min'!$Q$19 -> 8.5 | G22: ='CO 95% 10 min'!$P$19 -> 2.215
B23: ½ hourly mean * | C23: 100 mg/m3 * | D23: n/a | E23: n/a | F23: n/a | G23: n/a
B24: 95%ile 10-min avg * | C24: 150 mg/m3 * | D24: =MAX('CO 95% 10 min'!$M$7:$M$18) -> 11 | E24: ='CO 95% 10 min'!$M$19 -> 6.75 | F24: =MAX('CO 95% 10 min'!$M$22:$M$33) -> 11 | G24: ='CO 95% 10 min'!$M$34 -> 5.75
A25: Ammonia | B25: Daily mean | C25: No limit set | D25: ='NH3'!$O$19 -> 6 | E25: ='NH3'!$N$19 -> 1.5875 | F25: ='NH3'!$O$34 -> 8.23 | G25: ='NH3'!$N$34 -> 2.1725
A26: * = delete or amend as appropriate
A27: Comments :

Sheet HCl
A1: =+'Cover Page'!$B$29 -> Annual Performance Report 2020 | E1: =+'Cover Page'!$B$33 -> South East London Combined Heat and Power (SELCHP)
A3: Monitoring of Hydrogen Chloride emissions | D3: Whole Installation | G3: See Notes in Cell Q3 | J3: =+A3 -> Monitoring of Hydrogen Chloride emissions | N3: Per Combustion Line | Q3: Notes:
Q4: User to add logic to complete Whole installation, Table A5:G18. From the data in Per Combustion Line, Table J6:O79, subject to No. of lines installed
A5: mg/Nm3 | B5: 1/2 Hourly Reference Periods | E5: Daily Reference Periods
A6: =+'Cover Page'!C39 -> 2020 | B6: 1/2 hourly HCl ELV | C6: Monthly 1/2 hourly mean | D6: Highest 1/2 hourly maximum | E6: Daily HCl ELV | F6: Monthly daily mean | G6: Highest daily maximum | J6: =+A6 -> 2020 | K6: mg/Nm3 | L6: Monthly 1/2 hourly mean | M6: Monthly 1/2 hourly maximum | N6: Monthly daily mean | O6: Monthly daily maximum
A7: Jan | B7: 60 | C7: =(L7+L22)/2 -> 6.215 | D7: =(M7+M22)/2 -> 26.59 | E7: 10 | F7: =(N7+N22)/2 -> 6.23 | G7: =(O7+O22)/2 -> 7.44 | J7: A1 | K7: Jan | L7: 6.35 | M7: 20.23 | N7: 6.34 | O7: 7.38
A8: Feb | B8: 60 | C8: =(L8+L23)/2 -> 6.1 | D8: 41.52 | E8: 10 | F8: =(N8+N23)/2 -> 6.1 | G8: 7.76 | K8: Feb | L8: 6.33 | M8: 52.79 | N8: 6.34 | O8: 7.76
A9: Mar | B9: 60 | C9: 5.905 | D9: 31.01 | E9: 10 | F9: 5.97 | G9: 7.565 | K9: Mar | L9: 5.94 | M9: 36.01 | N9: 5.94 | O9: 7.53 | Q9: Whole Installation table A5:G18:
A10: Apr | B10: 60 | C10: 6.225 | D10: 38.475 | E10: 10 | F10: 6.225 | G10: 7.7 | K10: Apr | L10: 6.31 | M10: 44.66 | N10: 6.31 | O10: 8.31 | Q10: Mean: for 1/2 hourly and daily periods calculate mean of values across all operational combustion lines for the month
A11: May | B11: 60 | C11: 5.835 | D11: 35.19 | E11: 10 | F11: 5.835 | G11: 7.49 | K11: May | L11: 6.19 | M11: 39.39 | N11: 6.19 | O11: 7.65
A12: Jun | B12: 60 | C12: 6.575 | D12: 35.41 | E12: 10 | F12: 6.58 | G12: 7.765 | K12: Jun | L12: 7.04 | M12: 46.42 | N12: 7.04 | O12: 8.27
A13: Jul | B13: 60 | C13: 6.19 | D13: 27.375 | E13: 10 | F13: 6.2 | G13: 7.405 | K13: Jul | L13: 6.78 | M13: 28.01 | N13: 6.77 | O13: 7.92 | Q13: Maximum: for 1/2 hourly and daily periods use the highest value across all operational combustion lines for the month
A14: Aug | B14: 60 | C14: 5.125 | D14: 19.69 | E14: 10 | F14: 5.1 | G14: 6.215 | K14: Aug | L14: 5.41 | M14: 24.02 | N14: 5.27 | O14: 6.43
A15: Sep | B15: 60 | C15: 5.515 | D15: 22.565 | E15: 10 | F15: 5.65 | G15: 8.01 | K15: Sep | L15: 5.54 | M15: 26.44 | N15: 5.72 | O15: 8.08
A16: Oct | B16: 60 | C16: 5.655 | D16: 19.62 | E16: 10 | F16: 5.645 | G16: 7.335 | K16: Oct | L16: 5.62 | M16: 19.22 | N16: 5.6 | O16: 7.28
A17: Nov | B17: 60 | C17: 5.905 | D17: 19.23 | E17: 10 | F17: 5.91 | G17: 7.58 | K17: Nov | L17: 5.98 | M17: 18.26 | N17: 5.99 | O17: 6.93
A18: Dec | B18: 60 | C18: 6.175 | D18: 35.8 | E18: 10 | F18: 6.175 | G18: 7.91 | K18: Dec | L18: 5.96 | M18: 31.4 | N18: 5.96 | O18: 7.7
K19: Annual | L19: =AVERAGE(L7:L18) -> 6.120833333 | M19: =MAX(M7:M18) -> 52.79 | N19: =AVERAGE(N7:N18) -> 6.1225 | O19: =MAX(O7:O18) -> 8.31
J21: =+A6 -> 2020 | K21: mg/Nm3 | L21: Monthly 1/2 hourly mean | M21: Monthly 1/2 hourly maximum | N21: Monthly daily mean | O21: Monthly daily maximum
J22: A2 | K22: Jan | L22: 6.08 | M22: 32.95 | N22: 6.12 | O22: 7.5
K23: Feb | L23: 5.87 | M23: 30.25 | N23: 5.86 | O23: 7.76
K24: Mar | L24: 5.87 | M24: 26.01 | N24: 6 | O24: 7.6
K25: Apr | L25: 6.14 | M25: 32.29 | N25: 6.14 | O25: 7.09
K26: May | L26: 5.48 | M26: 30.99 | N26: 5.48 | O26: 7.33
K27: Jun | L27: 6.11 | M27: 24.4 | N27: 6.12 | O27: 7.26
K28: Jul | L28: 5.6 | M28: 26.74 | N28: 5.63 | O28: 6.89
K29: Aug | L29: 4.84 | M29: 15.36 | N29: 4.93 | O29: 6
K30: Sep | L30: 5.49 | M30: 18.69 | N30: 5.58 | O30: 7.94
K31: Oct | L31: 5.69 | M31: 20.02 | N31: 5.69 | O31: 7.39
K32: Nov | L32: 5.83 | M32: 20.2 | N32: 5.83 | O32: 8.23
K33: Dec | L33: 6.39 | M33: 40.2 | N33: 6.39 | O33: 8.12
K34: Annual | L34: =AVERAGE(L22:L33) -> 5.7825 | M34: =MAX(M22:M33) -> 40.2 | N34: =AVERAGE(N22:N33) -> 5.814166667 | O34: =MAX(O22:O33) -> 8.23
J36: =+A6 -> 2020 | K36: mg/Nm3 | L36: Monthly 1/2 hourly mean | M36: Monthly 1/2 hourly maximum | N36: Monthly daily mean | O36: Monthly daily maximum
J37: A3 | K37: Jan
K38: Feb
K39: Mar
K40: Apr
K41: May
K42: Jun
K43: Jul
K44: Aug
K45: Sep
K46: Oct
K47: Nov
A48: Comments : | K48: Dec
K49: Annual | L49: =AVERAGE(L37:L48) ->  | M49: =MAX(M37:M48) -> 0 | N49: =AVERAGE(N37:N48) ->  | O49: =MAX(O37:O48) -> 0
J51: =+A6 -> 2020 | K51: mg/Nm3 | L51: Monthly 1/2 hourly mean | M51: Monthly 1/2 hourly maximum | N51: Monthly daily mean | O51: Monthly daily maximum
J52: A4 | K52: Jan
K53: Feb
K54: Mar
K55: Apr
K56: May
K57: Jun
K58: Jul
K59: Aug
K60: Sep
K61: Oct
K62: Nov
K63: Dec
K64: Annual | L64: =AVERAGE(L52:L63) ->  | M64: =MAX(M52:M63) -> 0 | N64: =AVERAGE(N52:N63) ->  | O64: =MAX(O52:O63) -> 0
J66: =+A6 -> 2020 | K66: mg/Nm3 | L66: Monthly 1/2 hourly mean | M66: Monthly 1/2 hourly maximum | N66: Monthly daily mean | O66: Monthly daily maximum
J67: A5 | K67: Jan
K68: Feb
K69: Mar
K70: Apr
K71: May
K72: Jun
K73: Jul
K74: Aug
K75: Sep
K76: Oct
K77: Nov
K78: Dec
K79: Annual | L79: =AVERAGE(L67:L78) ->  | M79: =MAX(M67:M78) -> 0 | N79: =AVERAGE(N67:N78) ->  | O79: =MAX(O67:O78) -> 0

Sheet SO2
A1: =+'Cover Page'!$B$29 -> Annual Performance Report 2020 | E1: =+'Cover Page'!$B$33 -> South East London Combined Heat and Power (SELCHP)
A3: Monitoring of Sulphur dioxide emissions | D3: Whole Installation | G3: See Notes in Cell Q3 | J3: =+A3 -> Monitoring of Sulphur dioxide emissions | N3: Per Combustion Line | Q3: Notes:
Q4: User to add logic to complete Whole installation, Table A5:G18. From the data in Per Combustion Line, Table J6:O79, subject to No. of lines installed
A5: mg/Nm3 | B5: 1/2 Hourly Reference Periods | E5: Daily Reference Periods
A6: =+'Cover Page'!C39 -> 2020 | B6: 1/2 hourly SO2 ELV | C6: Monthly 1/2 hourly mean | D6: Highest 1/2 hourly maximum | E6: Daily SO2 ELV | F6: Monthly daily mean | G6: Highest daily maximum | J6: =+A6 -> 2020 | K6: mg/Nm3 | L6: Monthly 1/2 hourly mean | M6: Monthly 1/2 hourly maximum | N6: Monthly daily mean | O6: Monthly daily maximum
A7: Jan | B7: 200 | C7: =(L7+L22)/2 -> 10.2 | D7: =(M7+M22)/2 -> 27.17 | E7: 50 | F7: =(N7+N22)/2 -> 10.195 | G7: =(O7+O22)/2 -> 12.445 | J7: A1 | K7: Jan | L7: 6.84 | M7: 19.13 | N7: 6.72 | O7: 8.84
A8: Feb | B8: 200 | C8: =(L8+L23)/2 -> 11.6 | D8: 55.905 | E8: 50 | F8: =(N8+N23)/2 -> 11.605 | G8: 13.94 | K8: Feb | L8: 8.6 | M8: 64.62 | N8: 8.61 | O8: 11.27
A9: Mar | B9: 200 | C9: 10.42 | D9: 69.485 | E9: 50 | F9: 10.435 | G9: 18.27 | K9: Mar | L9: 10.17 | M9: 73.69 | N9: 10.17 | O9: 19.85 | Q9: Whole Installation table A5:G18:
A10: Apr | B10: 200 | C10: 12.295 | D10: 143.44 | E10: 50 | F10: 12.29 | G10: 20.055 | K10: Apr | L10: 11.27 | M10: 142.28 | N10: 11.27 | O10: 17.14 | Q10: Mean: for 1/2 hourly and daily periods calculate mean of values across all operational combustion lines for the month
A11: May | B11: 200 | C11: 13.93 | D11: =(M11+M26)/2 -> 167.03 | E11: 50 | F11: 13.95 | G11: 24.485 | K11: May | L11: 12.91 | M11: 182.5 | N11: 12.92 | O11: 22.44
A12: Jun | B12: 200 | C12: 11.245 | D12: 141.65 | E12: 50 | F12: 11.255 | G12: 16.425 | K12: Jun | L12: 11.14 | M12: 116.63 | N12: 11.15 | O12: 16.17
A13: Jul | B13: 200 | C13: 10.41 | D13: 131.345 | E13: 50 | F13: 10.475 | G13: 18.77 | K13: Jul | L13: 9.29 | M13: 123.98 | N13: 9.28 | O13: 19.86 | Q13: Maximum: for 1/2 hourly and daily periods use the highest value across all operational combustion lines for the month
A14: Aug | B14: 200 | C14: 9.395 | D14: 53.54 | E14: 50 | F14: 9.09 | G14: 13.385 | K14: Aug | L14: 9.72 | M14: 53.6 | N14: 8.92 | O14: 13.02
A15: Sep | B15: 200 | C15: 14.025 | D15: 88.12 | E15: 50 | F15: 14.445 | G15: 18.83 | K15: Sep | L15: 13.43 | M15: 78.47 | N15: 13.75 | O15: 18.24
A16: Oct | B16: 200 | C16: 11.325 | D16: 87.035 | E16: 50 | F16: 11.205 | G16: 15.47 | K16: Oct | L16: 10.97 | M16: 80.74 | N16: 10.74 | O16: 14.22
A17: Nov | B17: 200 | C17: 10.16 | D17: 75.395 | E17: 50 | F17: 10.145 | G17: 14.685 | K17: Nov | L17: 10.59 | M17: 41.85 | N17: 10.56 | O17: 13.79
A18: Dec | B18: 200 | C18: 11.55 | D18: 63.57 | E18: 50 | F18: 11.55 | G18: 18.885 | K18: Dec | L18: 11.53 | M18: 53.01 | N18: 11.53 | O18: 17.88
K19: Annual | L19: =AVERAGE(L7:L18) -> 10.53833333 | M19: =MAX(M7:M18) -> 182.5 | N19: =AVERAGE(N7:N18) -> 10.46833333 | O19: =MAX(O7:O18) -> 22.44
J21: =+A6 -> 2020 | K21: mg/Nm3 | L21: Monthly 1/2 hourly mean | M21: Monthly 1/2 hourly maximum | N21: Monthly daily mean | O21: Monthly daily maximum
J22: A2 | K22: Jan | L22: 13.56 | M22: 35.21 | N22: 13.67 | O22: 16.05
K23: Feb | L23: 14.6 | M23: 47.19 | N23: 14.6 | O23: 16.61
K24: Mar | L24: 10.67 | M24: 65.28 | N24: 10.7 | O24: 16.69
K25: Apr | L25: 13.32 | M25: 144.6 | N25: 13.31 | O25: 22.97
K26: May | L26: 14.95 | M26: 151.56 | N26: 14.98 | O26: 26.53
K27: Jun | L27: 11.35 | M27: 166.67 | N27: 11.36 | O27: 16.68
K28: Jul | L28: 11.53 | M28: 138.71 | N28: 11.67 | O28: 17.68
K29: Aug | L29: 9.07 | M29: 53.48 | N29: 9.26 | O29: 13.75
K30: Sep | L30: 14.62 | M30: 97.77 | N30: 15.14 | O30: 19.42
K31: Oct | L31: 11.68 | M31: 93.33 | N31: 11.67 | O31: 16.72
K32: Nov | L32: 9.73 | M32: 108.94 | N32: 9.73 | O32: 15.58
K33: Dec | L33: 11.57 | M33: 74.13 | N33: 11.57 | O33: 19.89
K34: Annual | L34: =AVERAGE(L22:L33) -> 12.22083333 | M34: =MAX(M22:M33) -> 166.67 | N34: =AVERAGE(N22:N33) -> 12.305 | O34: =MAX(O22:O33) -> 26.53
J36: =+A6 -> 2020 | K36: mg/Nm3 | L36: Monthly 1/2 hourly mean | M36: Monthly 1/2 hourly maximum | N36: Monthly daily mean | O36: Monthly daily maximum
J37: A3 | K37: Jan
K38: Feb
K39: Mar
K40: Apr
K41: May
K42: Jun
K43: Jul
K44: Aug
K45: Sep
K46: Oct
K47: Nov
A48: Comments : | K48: Dec
K49: Annual | L49: =AVERAGE(L37:L48) ->  | M49: =MAX(M37:M48) -> 0 | N49: =AVERAGE(N37:N48) ->  | O49: =MAX(O37:O48) -> 0
J51: =+A6 -> 2020 | K51: mg/Nm3 | L51: Monthly 1/2 hourly mean | M51: Monthly 1/2 hourly maximum | N51: Monthly daily mean | O51: Monthly daily maximum
J52: A4 | K52: Jan
K53: Feb
K54: Mar
K55: Apr
K56: May
K57: Jun
K58: Jul
K59: Aug
K60: Sep
K61: Oct
K62: Nov
K63: Dec
K64: Annual | L64: =AVERAGE(L52:L63) ->  | M64: =MAX(M52:M63) -> 0 | N64: =AVERAGE(N52:N63) ->  | O64: =MAX(O52:O63) -> 0
J66: =+A6 -> 2020 | K66: mg/Nm3 | L66: Monthly 1/2 hourly mean | M66: Monthly 1/2 hourly maximum | N66: Monthly daily mean | O66: Monthly daily maximum
J67: A5 | K67: Jan
K68: Feb
K69: Mar
K70: Apr
K71: May
K72: Jun
K73: Jul
K74: Aug
K75: Sep
K76: Oct
K77: Nov
K78: Dec
K79: Annual | L79: =AVERAGE(L67:L78) ->  | M79: =MAX(M67:M78) -> 0 | N79: =AVERAGE(N67:N78) ->  | O79: =MAX(O67:O78) -> 0

Sheet NOx
A1: =+'Cover Page'!$B$29 -> Annual Performance Report 2020 | E1: =+'Cover Page'!$B$33 -> South East London Combined Heat and Power (SELCHP)
A3: Monitoring of Oxides of Nitrogen emissions | D3: Whole Installation | G3: See Notes in Cell Q3 | J3: =+A3 -> Monitoring of Oxides of Nitrogen emissions | N3: Per Combustion Line | Q3: Notes:
Q4: User to add logic to complete Whole installation, Table A5:G18. From the data in Per Combustion Line, Table J6:O79, subject to No. of lines installed
A5: mg/Nm3 | B5: 1/2 Hourly Reference Periods | E5: Daily Reference Periods
A6: =+'Cover Page'!C39 -> 2020 | B6: 1/2 hourly NOx ELV | C6: Monthly 1/2 hourly mean | D6: Highest 1/2 hourly maximum | E6: Daily NOx ELV | F6: Monthly daily mean | G6: Highest daily maximum | J6: =+A6 -> 2020 | K6: mg/Nm3 | L6: Monthly 1/2 hourly mean | M6: Monthly 1/2 hourly maximum | N6: Monthly daily mean | O6: Monthly daily maximum
A7: Jan | B7: 400 | C7: =(L7+L22)/2 -> 178.085 | D7: =(M7+M22)/2 -> 241.12 | E7: 200 | F7: =(N7+N22)/2 -> 177.87 | G7: =(O7+O22)/2 -> 185.525 | J7: A1 | K7: Jan | L7: 175.45 | M7: 242.4 | N7: 175.26 | O7: 182.54
A8: Feb | B8: 400 | C8: =(L8+L23)/2 -> 178.035 | D8: 250.335 | E8: 200 | F8: =(N8+N23)/2 -> 178.105 | G8: 191.515 | K8: Feb | L8: 173.69 | M8: 225.79 | N8: 173.77 | O8: 185.5
A9: Mar | B9: 400 | C9: 177.81 | D9: 250 | E9: 200 | F9: 178.19 | G9: 187.58 | K9: Mar | L9: 175.63 | M9: 239.78 | N9: 175.62 | O9: 184.32 | Q9: Whole Installation table A5:G18:
A10: Apr | B10: 400 | C10: 181.16 | D10: 239.185 | E10: 200 | F10: 181.16 | G10: 195.35 | K10: Apr | L10: 181.44 | M10: 246.93 | N10: 181.43 | O10: 195.98 | Q10: Mean: for 1/2 hourly and daily periods calculate mean of values across all operational combustion lines for the month
A11: May | B11: 400 | C11: 177.195 | D11: 273.305 | E11: 200 | F11: 177.22 | G11: 191.385 | K11: May | L11: 176.25 | M11: 315.08 | N11: 176.3 | O11: 192.34
A12: Jun | B12: 400 | C12: 172.53 | D12: 250.01 | E12: 200 | F12: 172.48 | G12: 183.785 | K12: Jun | L12: 172.42 | M12: 261.06 | N12: 172.32 | O12: 182.67
A13: Jul | B13: 400 | C13: 171.085 | D13: 251.12 | E13: 200 | F13: 171.3 | G13: 187.11 | K13: Jul | L13: 171.84 | M13: 230.64 | N13: 171.76 | O13: 187.18 | Q13: Maximum: for 1/2 hourly and daily periods use the highest value across all operational combustion lines for the month
A14: Aug | B14: 400 | C14: 166.07 | D14: 222.16 | E14: 200 | F14: 167.11 | G14: 184.1 | K14: Aug | L14: 159.72 | M14: 218.82 | N14: 161.93 | O14: 184.09
A15: Sep | B15: 400 | C15: 166.97 | D15: 237.54 | E15: 200 | F15: 168.795 | G15: 182.39 | K15: Sep | L15: 166.19 | M15: 259.15 | N15: 168.42 | O15: 183.26
A16: Oct | B16: 400 | C16: 172.93 | D16: 228.545 | E16: 200 | F16: 172.995 | G16: 184.67 | K16: Oct | L16: 174.63 | M16: 217.93 | N16: 174.76 | O16: 184.86
A17: Nov | B17: 400 | C17: 175.005 | D17: 229.705 | E17: 200 | F17: 175.025 | G17: 188.825 | K17: Nov | L17: 180.19 | M17: 244.89 | N17: 180.23 | O17: 190.48
A18: Dec | B18: 400 | C18: 165.46 | D18: 207.855 | E18: 200 | F18: 165.46 | G18: 181.52 | K18: Dec | L18: 169.71 | M18: 208.95 | N18: 169.71 | O18: 186.56
K19: Annual | L19: =AVERAGE(L7:L18) -> 173.0966667 | M19: =MAX(M7:M18) -> 315.08 | N19: =AVERAGE(N7:N18) -> 173.4591667 | O19: =MAX(O7:O18) -> 195.98
J21: =+A6 -> 2020 | K21: mg/Nm3 | L21: Monthly 1/2 hourly mean | M21: Monthly 1/2 hourly maximum | N21: Monthly daily mean | O21: Monthly daily maximum
J22: A2 | K22: Jan | L22: 180.72 | M22: 239.84 | N22: 180.48 | O22: 188.51
K23: Feb | L23: 182.38 | M23: 274.88 | N23: 182.44 | O23: 197.53
K24: Mar | L24: 179.99 | M24: 260.22 | N24: 180.76 | O24: 190.84
K25: Apr | L25: 180.88 | M25: 231.44 | N25: 180.89 | O25: 194.72
K26: May | L26: 178.14 | M26: 231.53 | N26: 178.14 | O26: 190.43
K27: Jun | L27: 172.64 | M27: 238.96 | N27: 172.64 | O27: 184.9
K28: Jul | L28: 170.33 | M28: 271.6 | N28: 170.84 | O28: 187.04
K29: Aug | L29: 172.42 | M29: 225.5 | N29: 172.29 | O29: 184.11
K30: Sep | L30: 167.75 | M30: 215.93 | N30: 169.17 | O30: 181.52
K31: Oct | L31: 171.23 | M31: 239.16 | N31: 171.23 | O31: 184.48
K32: Nov | L32: 169.82 | M32: 214.52 | N32: 169.82 | O32: 187.17
K33: Dec | L33: 161.21 | M33: 206.76 | N33: 161.21 | O33: 176.48
K34: Annual | L34: =AVERAGE(L22:L33) -> 173.9591667 | M34: =MAX(M22:M33) -> 274.88 | N34: =AVERAGE(N22:N33) -> 174.1591667 | O34: =MAX(O22:O33) -> 197.53
J36: =+A6 -> 2020 | K36: mg/Nm3 | L36: Monthly 1/2 hourly mean | M36: Monthly 1/2 hourly maximum | N36: Monthly daily mean | O36: Monthly daily maximum
J37: A3 | K37: Jan
K38: Feb
K39: Mar
K40: Apr
K41: May
K42: Jun
K43: Jul
K44: Aug
K45: Sep
K46: Oct
K47: Nov
A48: Comments : | K48: Dec
K49: Annual | L49: =AVERAGE(L37:L48) ->  | M49: =MAX(M37:M48) -> 0 | N49: =AVERAGE(N37:N48) ->  | O49: =MAX(O37:O48) -> 0
J51: =+A6 -> 2020 | K51: mg/Nm3 | L51: Monthly 1/2 hourly mean | M51: Monthly 1/2 hourly maximum | N51: Monthly daily mean | O51: Monthly daily maximum
J52: A4 | K52: Jan
K53: Feb
K54: Mar
K55: Apr
K56: May
K57: Jun
K58: Jul
K59: Aug
K60: Sep
K61: Oct
K62: Nov
K63: Dec
K64: Annual | L64: =AVERAGE(L52:L63) ->  | M64: =MAX(M52:M63) -> 0 | N64: =AVERAGE(N52:N63) ->  | O64: =MAX(O52:O63) -> 0
J66: =+A6 -> 2020 | K66: mg/Nm3 | L66: Monthly 1/2 hourly mean | M66: Monthly 1/2 hourly maximum | N66: Monthly daily mean | O66: Monthly daily maximum
J67: A5 | K67: Jan
K68: Feb
K69: Mar
K70: Apr
K71: May
K72: Jun
K73: Jul
K74: Aug
K75: Sep
K76: Oct
K77: Nov
K78: Dec
K79: Annual | L79: =AVERAGE(L67:L78) ->  | M79: =MAX(M67:M78) -> 0 | N79: =AVERAGE(N67:N78) ->  | O79: =MAX(O67:O78) -> 0

Sheet TOC
A1: =+'Cover Page'!$B$29 -> Annual Performance Report 2020 | E1: =+'Cover Page'!$B$33 -> South East London Combined Heat and Power (SELCHP)
A3: Monitoring of Total organic carbon emissions | D3: Whole Installation | G3: See Notes in Cell Q3 | J3: =+A3 -> Monitoring of Total organic carbon emissions | N3: Per Combustion Line | Q3: Notes:
Q4: User to add logic to complete Whole installation, Table A5:G18. From the data in Per Combustion Line, Table J6:O79, subject to No. of lines installed
A5: mg/Nm3 | B5: 1/2 Hourly Reference Periods | E5: Daily Reference Periods
A6: =+'Cover Page'!C39 -> 2020 | B6: 1/2 hourly TOC ELV | C6: Monthly 1/2 hourly mean | D6: Highest 1/2 hourly maximum | E6: Daily TOC ELV | F6: Monthly daily mean | G6: Highest daily maximum | J6: =+A6 -> 2020 | K6: mg/Nm3 | L6: Monthly 1/2 hourly mean | M6: Monthly 1/2 hourly maximum | N6: Monthly daily mean | O6: Monthly daily maximum
A7: Jan | B7: 20 | C7: =(L7+L22)/2 -> -0.03 | D7: =(M7+M22)/2 -> 1.965 | E7: 10 | F7: =(N7+N22)/2 -> -0.03 | G7: =(O7+O22)/2 -> 0.13 | J7: A1 | K7: Jan | L7: 0.2 | M7: 2.35 | N7: 0.2 | O7: 0.33
A8: Feb | B8: 20 | C8: =(L8+L23)/2 -> -0.05 | D8: 3.715 | E8: 10 | F8: =(N8+N23)/2 -> -0.05 | G8: 0.2 | K8: Feb | L8: 0.17 | M8: 6.17 | N8: 0.17 | O8: 0.48
A9: Mar | B9: 20 | C9: 0.225 | D9: 2.52 | E9: 10 | F9: 0.235 | G9: 0.565 | K9: Mar | L9: 0.08 | M9: 3.95 | N9: 0.08 | O9: 0.67 | Q9: Whole Installation table A5:G18:
A10: Apr | B10: 20 | C10: 0.13 | D10: 1.675 | E10: 10 | F10: 0.13 | G10: 0.55 | K10: Apr | L10: 0.09 | M10: 1.02 | N10: 0.09 | O10: 0.41 | Q10: Mean: for 1/2 hourly and daily periods calculate mean of values across all operational combustion lines for the month
A11: May | B11: 20 | C11: 0 | D11: 0.66 | E11: 10 | F11: 0 | G11: 0.1 | K11: May | L11: 0.16 | M11: 0.43 | N11: 0.16 | O11: 0.26
A12: Jun | B12: 20 | C12: 0.045 | D12: 1.62 | E12: 10 | F12: 0.04 | G12: 0.59 | K12: Jun | L12: 0.33 | M12: 2.42 | N12: 0.32 | O12: 1.15
A13: Jul | B13: 20 | C13: 0.33 | D13: 3.765 | E13: 10 | F13: 0.325 | G13: 0.79 | K13: Jul | L13: 0.87 | M13: 1.39 | N13: 0.87 | O13: 1.06 | Q13: Maximum: for 1/2 hourly and daily periods use the highest value across all operational combustion lines for the month
A14: Aug | B14: 20 | C14: -0.75 | D14: 1.245 | E14: 10 | F14: -0.08 | G14: 0.53 | K14: Aug | L14: -1.26 | M14: 1.76 | N14: 0.08 | O14: 1.22
A15: Sep | B15: 20 | C15: -0.035 | D15: 5.835 | E15: 10 | F15: -0.055 | G15: 0.625 | K15: Sep | L15: 0.01 | M15: 8.48 | N15: -0.01 | O15: 0.81
A16: Oct | B16: 20 | C16: -0.155 | D16: 3.075 | E16: 10 | F16: -0.16 | G16: 0.215 | K16: Oct | L16: -0.54 | M16: 4.36 | N16: -0.55 | O16: -0.32
A17: Nov | B17: 20 | C17: 0.255 | D17: 1.64 | E17: 10 | F17: 0.255 | G17: 1.005 | K17: Nov | L17: 0.15 | M17: 1.88 | N17: 0.15 | O17: 1.35
A18: Dec | B18: 20 | C18: 0.34 | D18: 1.685 | E18: 10 | F18: 0.34 | G18: 0.87 | K18: Dec | L18: 0.36 | M18: 1.84 | N18: 0.36 | O18: 1.28
K19: Annual | L19: =AVERAGE(L7:L18) -> 0.05166666667 | M19: =MAX(M7:M18) -> 8.48 | N19: =AVERAGE(N7:N18) -> 0.16 | O19: =MAX(O7:O18) -> 1.35
J21: =+A6 -> 2020 | K21: mg/Nm3 | L21: Monthly 1/2 hourly mean | M21: Monthly 1/2 hourly maximum | N21: Monthly daily mean | O21: Monthly daily maximum
J22: A2 | K22: Jan | L22: -0.26 | M22: 1.58 | N22: -0.26 | O22: -0.07
K23: Feb | L23: -0.27 | M23: 1.26 | N23: -0.27 | O23: -0.08
K24: Mar | L24: 0.37 | M24: 1.09 | N24: 0.39 | O24: 0.46
K25: Apr | L25: 0.17 | M25: 2.33 | N25: 0.17 | O25: 0.69
K26: May | L26: -0.16 | M26: 0.89 | N26: -0.16 | O26: -0.06
K27: Jun | L27: -0.24 | M27: 0.82 | N27: -0.24 | O27: 0.03
K28: Jul | L28: -0.21 | M28: 6.14 | N28: -0.22 | O28: 0.52
K29: Aug | L29: -0.24 | M29: 0.73 | N29: -0.24 | O29: -0.16
K30: Sep | L30: -0.08 | M30: 3.19 | N30: -0.1 | O30: 0.44
K31: Oct | L31: 0.23 | M31: 1.79 | N31: 0.23 | O31: 0.75
K32: Nov | L32: 0.36 | M32: 1.4 | N32: 0.36 | O32: 0.66
K33: Dec | L33: 0.32 | M33: 1.53 | N33: 0.32 | O33: 0.46
K34: Annual | L34: =AVERAGE(L22:L33) -> -0.0008333333333 | M34: =MAX(M22:M33) -> 6.14 | N34: =AVERAGE(N22:N33) -> -0.001666666667 | O34: =MAX(O22:O33) -> 0.75
J36: =+A6 -> 2020 | K36: mg/Nm3 | L36: Monthly 1/2 hourly mean | M36: Monthly 1/2 hourly maximum | N36: Monthly daily mean | O36: Monthly daily maximum
J37: A3 | K37: Jan
K38: Feb
K39: Mar
K40: Apr
K41: May
K42: Jun
K43: Jul
K44: Aug
K45: Sep
K46: Oct
K47: Nov
A48: Comments : | K48: Dec
K49: Annual | L49: =AVERAGE(L37:L48) ->  | M49: =MAX(M37:M48) -> 0 | N49: =AVERAGE(N37:N48) ->  | O49: =MAX(O37:O48) -> 0
J51: =+A6 -> 2020 | K51: mg/Nm3 | L51: Monthly 1/2 hourly mean | M51: Monthly 1/2 hourly maximum | N51: Monthly daily mean | O51: Monthly daily maximum
J52: A4 | K52: Jan
K53: Feb
K54: Mar
K55: Apr
K56: May
K57: Jun
K58: Jul
K59: Aug
K60: Sep
K61: Oct
K62: Nov
K63: Dec
K64: Annual | L64: =AVERAGE(L52:L63) ->  | M64: =MAX(M52:M63) -> 0 | N64: =AVERAGE(N52:N63) ->  | O64: =MAX(O52:O63) -> 0
J66: =+A6 -> 2020 | K66: mg/Nm3 | L66: Monthly 1/2 hourly mean | M66: Monthly 1/2 hourly maximum | N66: Monthly daily mean | O66: Monthly daily maximum
J67: A5 | K67: Jan
K68: Feb
K69: Mar
K70: Apr
K71: May
K72: Jun
K73: Jul
K74: Aug
K75: Sep
K76: Oct
K77: Nov
K78: Dec
K79: Annual | L79: =AVERAGE(L67:L78) ->  | M79: =MAX(M67:M78) -> 0 | N79: =AVERAGE(N67:N78) ->  | O79: =MAX(O67:O78) -> 0

Sheet Particulates
A1: =+'Cover Page'!$B$29 -> Annual Performance Report 2020 | E1: =+'Cover Page'!$B$33 -> South East London Combined Heat and Power (SELCHP)
A3: Monitoring of Particulate matter emissions | D3: Whole Installation | G3: See Notes in Cell Q3 | J3: =+A3 -> Monitoring of Particulate matter emissions | N3: Per Combustion Line | Q3: Notes:
Q4: User to add logic to complete Whole installation, Table A5:G18. From the data in Per Combustion Line, Table J6:O79, subject to No. of lines installed
A5: mg/Nm3 | B5: 1/2 Hourly Reference Periods | E5: Daily Reference Periods
A6: =+'Cover Page'!C39 -> 2020 | B6: 1/2 hourly PM ELV | C6: Monthly 1/2 hourly mean | D6: Highest 1/2 hourly maximum | E6: Daily PM ELV | F6: Monthly daily mean | G6: Highest daily maximum | J6: =+A6 -> 2020 | K6: mg/Nm3 | L6: Monthly 1/2 hourly mean | M6: Monthly 1/2 hourly maximum | N6: Monthly daily mean | O6: Monthly daily maximum
A7: Jan | B7: 30 | C7: =(L7+L22)/2 -> 0.88 | D7: =(M7+M22)/2 -> 3.29 | E7: 10 | F7: =(N7+N22)/2 -> 0.885 | G7: =(O7+O22)/2 -> 1.18 | J7: A1 | K7: Jan | L7: 1.5 | M7: 3.13 | N7: 1.51 | O7: 1.92
A8: Feb | B8: 30 | C8: =(L8+L23)/2 -> 1.17 | D8: 4.9 | E8: 10 | F8: =(N8+N23)/2 -> 1.17 | G8: 1.505 | K8: Feb | L8: 2.18 | M8: 6.61 | N8: 2.18 | O8: 2.74
A9: Mar | B9: 30 | C9: 0.765 | D9: 8.91 | E9: 10 | F9: 0.76 | G9: 1.36 | K9: Mar | L9: 0.8 | M9: 3.29 | N9: 0.8 | O9: 1.18 | Q9: Whole Installation table A5:G18:
A10: Apr | B10: 30 | C10: 0.56 | D10: 7.645 | E10: 10 | F10: 0.565 | G10: 1.11 | K10: Apr | L10: 0.7 | M10: 3.45 | N10: 0.7 | O10: 0.9 | Q10: Mean: for 1/2 hourly and daily periods calculate mean of values across all operational combustion lines for the month
A11: May | B11: 30 | C11: =(L11+L26)/2 -> 0.485 | D11: 3.285 | E11: 10 | F11: 0.485 | G11: 0.69 | K11: May | L11: 0.73 | M11: 2.51 | N11: 0.73 | O11: 1.01
A12: Jun | B12: 30 | C12: =(L12+L27)/2 -> 1.365 | D12: 8.985 | E12: 10 | F12: 1.375 | G12: 2.695 | K12: Jun | L12: 2.46 | M12: 13.21 | N12: 2.48 | O12: 4.98
A13: Jul | B13: 30 | C13: 1.555 | D13: 4.635 | E13: 10 | F13: 1.555 | G13: 2.01 | K13: Jul | L13: 2.91 | M13: 4.79 | N13: 2.91 | O13: 3.67 | Q13: Maximum: for 1/2 hourly and daily periods use the highest value across all operational combustion lines for the month
A14: Aug | B14: 30 | C14: 1.825 | D14: 11.775 | E14: 10 | F14: 1.71 | G14: 3.8 | K14: Aug | L14: 3.38 | M14: 16.26 | N14: 3.17 | O14: 7.29
A15: Sep | B15: 30 | C15: 1.035 | D15: 18.525 | E15: 10 | F15: 0.975 | G15: 4.37 | K15: Sep | L15: 1.41 | M15: 26.65 | N15: 1.3 | O15: 6.74
A16: Oct | B16: 30 | C16: 0.8 | D16: 3.79 | E16: 10 | F16: 0.8 | G16: 1.485 | K16: Oct | L16: 1.31 | M16: 3.09 | N16: 1.31 | O16: 2.49
A17: Nov | B17: 30 | C17: 0.675 | D17: 4.24 | E17: 10 | F17: 0.675 | G17: 1.895 | K17: Nov | L17: 1.06 | M17: 4.94 | N17: 1.06 | O17: 3.25
A18: Dec | B18: 30 | C18: 0.76 | D18: 2.995 | E18: 10 | F18: 0.76 | G18: 1.055 | K18: Dec | L18: 1.29 | M18: 2.65 | N18: 1.29 | O18: 1.72
K19: Annual | L19: =AVERAGE(L7:L18) -> 1.644166667 | M19: =MAX(M7:M18) -> 26.65 | N19: =AVERAGE(N7:N18) -> 1.62 | O19: =MAX(O7:O18) -> 7.29
J21: =+A6 -> 2020 | K21: mg/Nm3 | L21: Monthly 1/2 hourly mean | M21: Monthly 1/2 hourly maximum | N21: Monthly daily mean | O21: Monthly daily maximum
J22: A2 | K22: Jan | L22: 0.26 | M22: 3.45 | N22: 0.26 | O22: 0.44
K23: Feb | L23: 0.16 | M23: 3.19 | N23: 0.16 | O23: 0.27
K24: Mar | L24: 0.73 | M24: 14.53 | N24: 0.72 | O24: 1.54
K25: Apr | L25: 0.42 | M25: 11.84 | N25: 0.43 | O25: 1.32
K26: May | L26: 0.24 | M26: 4.06 | N26: 0.24 | O26: 0.37
K27: Jun | L27: 0.27 | M27: 4.76 | N27: 0.27 | O27: 0.41
K28: Jul | L28: 0.2 | M28: 4.48 | N28: 0.2 | O28: 0.35
K29: Aug | L29: 0.27 | M29: 7.29 | N29: 0.25 | O29: 0.31
K30: Sep | L30: 0.66 | M30: 10.4 | N30: 0.65 | O30: 2
K31: Oct | L31: 0.29 | M31: 4.49 | N31: 0.29 | O31: 0.48
K32: Nov | L32: 0.29 | M32: 3.54 | N32: 0.29 | O32: 0.54
K33: Dec | L33: 0.23 | M33: 3.34 | N33: 0.23 | O33: 0.39
K34: Annual | L34: =AVERAGE(L22:L33) -> 0.335 | M34: =MAX(M22:M33) -> 14.53 | N34: =AVERAGE(N22:N33) -> 0.3325 | O34: =MAX(O22:O33) -> 2
J36: =+A6 -> 2020 | K36: mg/Nm3 | L36: Monthly 1/2 hourly mean | M36: Monthly 1/2 hourly maximum | N36: Monthly daily mean | O36: Monthly daily maximum
J37: A3 | K37: Jan
K38: Feb
K39: Mar
K40: Apr
K41: May
K42: Jun
K43: Jul
K44: Aug
K45: Sep
K46: Oct
K47: Nov
A48: Comments : | K48: Dec
K49: Annual | L49: =AVERAGE(L37:L48) ->  | M49: =MAX(M37:M48) -> 0 | N49: =AVERAGE(N37:N48) ->  | O49: =MAX(O37:O48) -> 0
J51: =+A6 -> 2020 | K51: mg/Nm3 | L51: Monthly 1/2 hourly mean | M51: Monthly 1/2 hourly maximum | N51: Monthly daily mean | O51: Monthly daily maximum
J52: A4 | K52: Jan
K53: Feb
K54: Mar
K55: Apr
K56: May
K57: Jun
K58: Jul
K59: Aug
K60: Sep
K61: Oct
K62: Nov
K63: Dec
K64: Annual | L64: =AVERAGE(L52:L63) ->  | M64: =MAX(M52:M63) -> 0 | N64: =AVERAGE(N52:N63) ->  | O64: =MAX(O52:O63) -> 0
J66: =+A6 -> 2020 | K66: mg/Nm3 | L66: Monthly 1/2 hourly mean | M66: Monthly 1/2 hourly maximum | N66: Monthly daily mean | O66: Monthly daily maximum
J67: A5 | K67: Jan
K68: Feb
K69: Mar
K70: Apr
K71: May
K72: Jun
K73: Jul
K74: Aug
K75: Sep
K76: Oct
K77: Nov
K78: Dec
K79: Annual | L79: =AVERAGE(L67:L78) ->  | M79: =MAX(M67:M78) -> 0 | N79: =AVERAGE(N67:N78) ->  | O79: =MAX(O67:O78) -> 0

Sheet CO 95% 10 min
A1: =+'Cover Page'!$B$29 -> Annual Performance Report 2020 | E1: =+'Cover Page'!$B$33 -> South East London Combined Heat and Power (SELCHP)
A3: Monitoring of Carbon Monoxide (10-minute avg) | E3: Whole Installation | H3: See Notes in Cell S3 | J3: =+A3 -> Monitoring of Carbon Monoxide (10-minute avg) | O3: Per Combustion Line | Q3: Notes: | S3: Notes:
S4: User to add logic to complete Whole installation, Table A5:H18. From the data in Per Combustion Line, Table K6:Q79, subject to No. of lines installed
A5: mg/Nm3 | B5: 10-minute Reference Periods | F5: Daily Reference Periods
A6: =+'Cover Page'!C39 -> 2020 | B6: 95%ile 10-min avg CO ELV | C6: 95%ile 10-min avg maximum | D6: Monthly CO 10-min avg mean | E6: 10-min avg maximum | F6: Daily CO ELV | G6: Monthly daily mean | H6: Highest daily maximum | K6: =+A6 -> 2020 | L6: mg/Nm3 | M6: 95%ile 10-min avg maximum | N6: Monthly CO 10-min avg mean | O6: 10-min avg maximum | P6: Monthly daily mean | Q6: Monthly daily maximum
A7: Jan | B7: 150 | C7: =(M7+M22)/2 -> 6.5 | D7: =(N7+N22)/2 -> 2.915 | E7: 467.615 | F7: 50 | G7: =(P7+P22)/2 -> 2.92 | H7: =(Q7+Q22)/2 -> 6.345 | K7: A1 | L7: Jan | M7: 8 | N7: 3.15 | O7: 759.12 | P7: 3.12 | Q7: 8.04
A8: Feb | B8: =+B7 -> 150 | C8: =(M8+M23)/2 -> 6.5 | D8: 2.46 | E8: 764.56 | F8: =+F7 -> 50 | G8: =(P8+P23)/2 -> 2.405 | H8: 6.855 | L8: Feb | M8: 8 | N8: 3.2 | O8: 941.89 | P8: 3.13 | Q8: 8.5
A9: Mar | B9: =+B8 -> 150 | C9: 2 | D9: -0.21 | E9: 72.68 | F9: =+F8 -> 50 | G9: -0.225 | H9: 0.775 | L9: Mar | M9: 4 | N9: 2.06 | O9: 98.12 | P9: 2.06 | Q9: 3.66 | S9: Whole Installation table A5:H18:
A10: Apr | B10: 150 | C10: 4 | D10: 0.22 | E10: 129.58 | F10: 50 | G10: 0.22 | H10: 2.105 | L10: Apr | M10: 5 | N10: 1.72 | O10: 90.74 | P10: 1.72 | Q10: 3.5 | S10: Mean: for 10-min and daily periods use average of all operational combustion lines.
A11: May | B11: 150 | C11: 4.5 | D11: 1.115 | E11: 208.905 | F11: 50 | G11: 1.115 | H11: 2.805 | L11: May | M11: 5 | N11: 2.07 | O11: 188.6 | P11: 2.06 | Q11: 3.37
A12: Jun | B12: 150 | C12: 7.5 | D12: 1.65 | E12: 79.155 | F12: 50 | G12: 1.625 | H12: 3.915 | L12: Jun | M12: 9 | N12: 2.79 | O12: 124.92 | P12: 2.74 | Q12: 5.68
A13: Jul | B13: 150 | C13: 5 | D13: 0.92 | E13: 290.92 | F13: 50 | G13: 0.93 | H13: 3.62 | L13: Jul | M13: 6 | N13: 1.54 | O13: 58.01 | P13: 1.54 | Q13: 3.57 | S13: Maximum: for 10-min and daily periods use the highest of all operational combustion lines in any month.
A14: Aug | B14: 150 | C14: 3 | D14: 2.59 | E14: 789.45 | F14: 50 | G14: 0.58 | H14: 2.915 | L14: Aug | M14: 2 | N14: 5.13 | O14: 1439.82 | P14: 1.11 | Q14: 4.41
A15: Sep | B15: 150 | C15: 8.5 | D15: 1.25 | E15: 547.26 | F15: 50 | G15: 1.205 | H15: 4.645 | L15: Sep | M15: 7 | N15: 0.73 | O15: 646.88 | P15: 0.73 | Q15: 4.23
A16: Oct | B16: 150 | C16: 9 | D16: 3.605 | E16: 270.765 | F16: 50 | G16: 3.615 | H16: 6.09 | L16: Oct | M16: 8 | N16: 3.81 | O16: 170.51 | P16: 3.83 | Q16: 6.24
A17: Nov | B17: 150 | C17: 9.5 | D17: 2.85 | E17: 499.335 | F17: 50 | G17: 2.845 | H17: 8.79 | L17: Nov | M17: 8 | N17: 2.39 | O17: 93.8 | P17: 2.38 | Q17: 4.98
A18: Dec | B18: 150 | C18: 9 | D18: 2.815 | E18: 378.34 | F18: 50 | G18: 2.815 | H18: 6.98 | L18: Dec | M18: 11 | N18: 2.16 | O18: 266.64 | P18: 2.16 | Q18: 5.39
L19: Annual | M19: =AVERAGE(M7:M18) -> 6.75 | N19: =AVERAGE(N7:N18) -> 2.5625 | O19: =MAX(O7:O18) -> 1439.82 | P19: =AVERAGE(P7:P18) -> 2.215 | Q19: =MAX(Q7:Q18) -> 8.5
K21: =+A6 -> 2020 | L21: mg/Nm3 | M21: 95%ile 10-min avg maximum | N21: Monthly CO 10-min avg mean | O21: 10-min avg maximum | P21: Monthly daily mean | Q21: Monthly daily maximum
K22: A2 | L22: Jan | M22: 5 | N22: 2.68 | O22: 176.11 | P22: 2.72 | Q22: 4.65
L23: Feb | M23: 5 | N23: 1.72 | O23: 587.23 | P23: 1.68 | Q23: 5.21
L24: Mar | M24: 0 | N24: -2.48 | O24: 47.24 | P24: -2.51 | Q24: -2.11
L25: Apr | M25: 3 | N25: -1.28 | O25: 168.42 | P25: -1.28 | Q25: 0.71
L26: May | M26: 4 | N26: 0.16 | O26: 229.21 | P26: 0.17 | Q26: 2.24
L27: Jun | M27: 6 | N27: 0.51 | O27: 33.39 | P27: 0.51 | Q27: 2.15
L28: Jul | M28: 4 | N28: 0.3 | O28: 523.83 | P28: 0.32 | Q28: 3.67
L29: Aug | M29: 4 | N29: 0.05 | O29: 139.08 | P29: 0.05 | Q29: 1.42
L30: Sep | M30: 10 | N30: 1.77 | O30: 447.64 | P30: 1.68 | Q30: 5.06
L31: Oct | M31: 10 | N31: 3.4 | O31: 371.02 | P31: 3.4 | Q31: 5.94
L32: Nov | M32: 11 | N32: 3.31 | O32: 904.87 | P32: 3.31 | Q32: 12.6
L33: Dec | M33: 7 | N33: 3.47 | O33: 490.04 | P33: 3.47 | Q33: 8.57
L34: Annual | M34: =AVERAGE(M22:M33) -> 5.75 | N34: =AVERAGE(N22:N33) -> 1.134166667 | O34: =MAX(O22:O33) -> 904.87 | P34: =AVERAGE(P22:P33) -> 1.126666667 | Q34: =MAX(Q22:Q33) -> 12.6
K36: =+A6 -> 2020 | L36: mg/Nm3 | M36: 95%ile 10-min avg maximum | N36: Monthly CO 10-min avg mean | O36: 10-min avg maximum | P36: Monthly daily mean | Q36: Monthly daily maximum
K37: A3 | L37: Jan
L38: Feb
L39: Mar
L40: Apr
L41: May
L42: Jun
L43: Jul
L44: Aug
L45: Sep
L46: Oct
L47: Nov
A48: Comments : | L48: Dec
A49: Environment Agency explanatory note: The 10-minute average ELV is based on the “95th percentile”. In this case this means that 95% of the 10 minute averages in the relevant 24-hour period (i.e. 137) must be below 150 mg/Nm3, and 5% (i.e. 7) are allowed to be any value above 150 mg/Nm3. Whilst we expect operators to minimise CO emissions at all times, it is perfectly acceptable for the value of the maximum 10-minute average to be above 150 mg/Nm3, provided the 95th percentile ELV has been met for that period. | L49: Annual | M49: =AVERAGE(M37:M48) ->  | O49: =MAX(O37:O48) -> 0 | P49: =AVERAGE(P37:P48) ->  | Q49: =MAX(Q37:Q48) -> 0
K51: =+A6 -> 2020 | L51: mg/Nm3 | M51: 95%ile 10-min avg maximum | N51: Monthly CO 10-min avg mean | O51: 10-min avg maximum | P51: Monthly daily mean | Q51: Monthly daily maximum
K52: A4 | L52: Jan
L53: Feb
L54: Mar
L55: Apr
L56: May
L57: Jun
L58: Jul
L59: Aug
L60: Sep
L61: Oct
L62: Nov
L63: Dec
L64: Annual | M64: =AVERAGE(M52:M63) ->  | O64: =MAX(O52:O63) -> 0 | P64: =AVERAGE(P52:P63) ->  | Q64: =MAX(Q52:Q63) -> 0
K66: =+A6 -> 2020 | L66: mg/Nm3 | M66: 95%ile 10-min avg maximum | N66: Monthly CO 10-min avg mean | O66: 10-min avg maximum | P66: Monthly daily mean | Q66: Monthly daily maximum
K67: A5 | L67: Jan
L68: Feb
L69: Mar
L70: Apr
L71: May
L72: Jun
L73: Jul
L74: Aug
L75: Sep
L76: Oct
L77: Nov
L78: Dec
L79: Annual | M79: =AVERAGE(M67:M78) ->  | O79: =MAX(O67:O78) -> 0 | P79: =AVERAGE(P67:P78) ->  | Q79: =MAX(Q67:Q78) -> 0

Sheet NH3
A1: =+'Cover Page'!$B$29 -> Annual Performance Report 2020 | E1: =+'Cover Page'!$B$33 -> South East London Combined Heat and Power (SELCHP)
A3: Monitoring of Ammonia emissions | D3: Whole Installation | G3: See Notes in Cell Q3 | J3: =+A3 -> Monitoring of Ammonia emissions | N3: Per Combustion Line | Q3: Notes:
Q4: User to add logic to complete Whole installation, Table A5:G18. From the data in Per Combustion Line, Table J6:O79, subject to No. of lines installed
A5: mg/Nm3 | B5: 1/2 Hourly Reference Periods | E5: Daily Reference Periods
A6: =+'Cover Page'!C39 -> 2020 | B6: 1/2 hourly NH3 ELV | C6: Monthly 1/2 hourly mean | D6: Highest 1/2 hourly maximum | E6: Daily NH3 ELV | F6: Monthly daily mean | G6: Highest daily maximum | J6: =+A6 -> 2020 | K6: mg/Nm3 | L6: Monthly 1/2 hourly mean | M6: Monthly 1/2 hourly maximum | N6: Monthly daily mean | O6: Monthly daily maximum
A7: Jan | B7: 0 | C7: =(L7+L22)/2 -> 3.145 | D7: =(M7+M22)/2 -> 12.905 | E7: 10 | F7: =(N7+N22)/2 -> 3.2 | G7: =(O7+O22)/2 -> 4.9 | J7: A1 | K7: Jan | L7: 2.81 | M7: 14.83 | N7: 2.84 | O7: 4.6
A8: Feb | B8: =+B7 -> 0 | C8: =(L8+L23)/2 -> 3.35 | D8: 20.44 | E8: =+E7 -> 10 | F8: =(N8+N23)/2 -> 3.33 | G8: 5.64 | K8: Feb | L8: 1.84 | M8: 14.74 | N8: 1.82 | O8: 3.05
A9: Mar | B9: =+B8 -> 0 | C9: 2.615 | D9: 16.42 | E9: =+E8 -> 10 | F9: 2.595 | G9: 6.08 | K9: Mar | L9: 2.01 | M9: 13.26 | N9: 2.01 | O9: 6 | Q9: Whole Installation table A5:G18:
A10: Apr | B10: 0 | C10: 2.11 | D10: 12.625 | E10: 10 | F10: 2.11 | G10: 4.355 | K10: Apr | L10: 1.89 | M10: 13.7 | N10: 1.89 | O10: 3.47 | Q10: Mean: for 1/2 hourly and daily periods calculate mean of values across all operational combustion lines for the month
A11: May | B11: 0 | C11: 2.005 | D11: 11.4 | E11: 10 | F11: 2.005 | G11: 3.105 | K11: May | L11: 1.6 | M11: 10.36 | N11: 1.6 | O11: 2.69
A12: Jun | B12: 0 | C12: 1.66 | D12: 12.33 | E12: 10 | F12: 1.655 | G12: 2.97 | K12: Jun | L12: 1.44 | M12: 15.43 | N12: 1.43 | O12: 3.05
A13: Jul | B13: 0 | C13: 1.44 | D13: 11.605 | E13: 10 | F13: 1.435 | G13: 3.25 | K13: Jul | L13: 1.46 | M13: 9.29 | N13: 1.47 | O13: 2.84 | Q13: Maximum: for 1/2 hourly and daily periods use the highest value across all operational combustion lines for the month
A14: Aug | B14: 0 | C14: 1.49 | D14: 9.885 | E14: 10 | F14: 1.24 | G14: 3.84 | K14: Aug | L14: 1.98 | M14: 12.21 | N14: 1.47 | O14: 5.55
A15: Sep | B15: 0 | C15: 2.075 | D15: 18.625 | E15: 10 | F15: 1.875 | G15: 5.095 | K15: Sep | L15: 2.35 | M15: 15.2 | N15: 2.13 | O15: 5.04
A16: Oct | B16: 0 | C16: 1.29 | D16: 7.02 | E16: 10 | F16: 1.285 | G16: 2.36 | K16: Oct | L16: 1.2 | M16: 9.14 | N16: 1.19 | O16: 2.34
A17: Nov | B17: 0 | C17: 0.96 | D17: 9.56 | E17: 10 | F17: 0.955 | G17: 2.265 | K17: Nov | L17: 0.75 | M17: 14.05 | N17: 0.74 | O17: 2.32
A18: Dec | B18: 0 | C18: 0.875 | D18: 9.675 | E18: 10 | F18: 0.875 | G18: 3.445 | K18: Dec | L18: 0.46 | M18: 7.6 | N18: 0.46 | O18: 2.39
K19: Annual | L19: =AVERAGE(L7:L18) -> 1.649166667 | M19: =MAX(M7:M18) -> 15.43 | N19: =AVERAGE(N7:N18) -> 1.5875 | O19: =MAX(O7:O18) -> 6
J21: =+A6 -> 2020 | K21: mg/Nm3 | L21: Monthly 1/2 hourly mean | M21: Monthly 1/2 hourly maximum | N21: Monthly daily mean | O21: Monthly daily maximum
J22: A2 | K22: Jan | L22: 3.48 | M22: 10.98 | N22: 3.56 | O22: 5.2
K23: Feb | L23: 4.86 | M23: 26.14 | N23: 4.84 | O23: 8.23
K24: Mar | L24: 3.22 | M24: 19.58 | N24: 3.18 | O24: 6.16
K25: Apr | L25: 2.33 | M25: 11.55 | N25: 2.33 | O25: 5.24
K26: May | L26: 2.41 | M26: 12.44 | N26: 2.41 | O26: 3.52
K27: Jun | L27: 1.88 | M27: 9.23 | N27: 1.88 | O27: 2.89
K28: Jul | L28: 1.42 | M28: 13.92 | N28: 1.4 | O28: 3.66
K29: Aug | L29: 1 | M29: 7.56 | N29: 1.01 | O29: 2.13
K30: Sep | L30: 1.8 | M30: 22.05 | N30: 1.62 | O30: 5.15
K31: Oct | L31: 1.38 | M31: 4.9 | N31: 1.38 | O31: 2.38
K32: Nov | L32: 1.17 | M32: 5.07 | N32: 1.17 | O32: 2.21
K33: Dec | L33: 1.29 | M33: 11.75 | N33: 1.29 | O33: 4.5
K34: Annual | L34: =AVERAGE(L22:L33) -> 2.186666667 | M34: =MAX(M22:M33) -> 26.14 | N34: =AVERAGE(N22:N33) -> 2.1725 | O34: =MAX(O22:O33) -> 8.23
J36: =+A6 -> 2020 | K36: mg/Nm3 | L36: Monthly 1/2 hourly mean | M36: Monthly 1/2 hourly maximum | N36: Monthly daily mean | O36: Monthly daily maximum
J37: A3 | K37: Jan
K38: Feb
K39: Mar
K40: Apr
K41: May
K42: Jun
K43: Jul
K44: Aug
K45: Sep
K46: Oct
K47: Nov
A48: Comments : | K48: Dec
A49: An indicated ELV value of zero in the table above means that no ammonia limit is set in the permit. | K49: Annual | L49: =AVERAGE(L37:L48) ->  | M49: =MAX(M37:M48) -> 0 | N49: =AVERAGE(N37:N48) ->  | O49: =MAX(O37:O48) -> 0
J51: =+A6 -> 2020 | K51: mg/Nm3 | L51: Monthly 1/2 hourly mean | M51: Monthly 1/2 hourly maximum | N51: Monthly daily mean | O51: Monthly daily maximum
J52: A4 | K52: Jan
K53: Feb
K54: Mar
K55: Apr
K56: May
K57: Jun
K58: Jul
K59: Aug
K60: Sep
K61: Oct
K62: Nov
K63: Dec
K64: Annual | L64: =AVERAGE(L52:L63) ->  | M64: =MAX(M52:M63) -> 0 | N64: =AVERAGE(N52:N63) ->  | O64: =MAX(O52:O63) -> 0
J66: =+A6 -> 2020 | K66: mg/Nm3 | L66: Monthly 1/2 hourly mean | M66: Monthly 1/2 hourly maximum | N66: Monthly daily mean | O66: Monthly daily maximum
J67: A5 | K67: Jan
K68: Feb
K69: Mar
K70: Apr
K71: May
K72: Jun
K73: Jul
K74: Aug
K75: Sep
K76: Oct
K77: Nov
K78: Dec
K79: Annual | L79: =AVERAGE(L67:L78) ->  | M79: =MAX(M67:M78) -> 0 | N79: =AVERAGE(N67:N78) ->  | O79: =MAX(O67:O78) -> 0
